Workbook

Sheet Acta Est. Obra
A7: ANEXO DE LA RESOLUCION Nº 46 / 91
A8: ACTA DE ESTADO DE OBRA
A10: REFERENCIA: | B10: =Datos!K44 -> 0
A11: OBRA CALLE: | B11: =Datos!K45 -> 0 | C11: =Datos!K46 -> 0 | D11: =Datos!K47 -> 0 | F11: Partido de | G11: =Datos!K48 -> 0
A12: PROPIETARIO: | B12: =Datos!K29 -> 0
A13: DOMICILIO: | B13: =Datos!K32 -> 0 | D13: =Datos!K33 -> 0 | E13: Partido de | F13: =Datos!K35 -> 0
A14: PROFESIONAL: | B14: =Datos!K18 -> 0
A15: DOMICILIO: | B15: =Datos!K20 -> 0 | C15: =Datos!K21 -> 0 | D15: =Datos!K22 -> 0 | F15: Partido de | G15: =Datos!K23 -> 0
A17: ITEM | D17: % ITEM | E17: % EJECUT. | F17: % REAL | G17: OBSERVAC.
A19: 01) Preparación del terreno,repl.,excav. | D19: 1 | E19: 1 | F19: =D19*E19/100 -> 0.01 | G19: BUENO
A20: 02) Mampostería cimientos y elevación | D20: 18 | E20: 1 | F20: 0.18 | G20: BUENO
A21: 03) Capas aisladoras | D21: 1 | E21: 1 | F21: 0.01 | G21: BUENO
A22: 04) Estructura de techos | D22: 14 | E22: 1 | F22: 0.14 | G22: BUENO
A23: 05) Cubierta de techos | D23: 3 | E23: 1 | F23: 0.03 | G23: BUENO
A24: 06) Revoques gruesos / impermeables | D24: 6 | E24: 1 | F24: 0.06 | G24: BUENO
A25: 07) Contrapisos | D25: 1 | E25: 1 | F25: 0.01 | G25: BUENO
A26: 08) Inst. sanitaria
A27: a- Cloacas | D27: 3 | E27: 1 | F27: =D27*E27/100 -> 0.03 | G27: BUENO
A28: b- Agua fría | D28: 3 | E28: 1 | F28: =D28*E28/100 -> 0.03 | G28: BUENO
A29: c- Agua caliente | D29: 3 | E29: 1 | F29: =D29*E29/100 -> 0.03 | G29: BUENO
A30: 09) Inst. de gas | D30: 2 | E30: 1 | F30: =D30*E30/100 -> 0.02 | G30: BUENO
A31: 10) Inst. eléctrica
A32: a- Cañerías | D32: 1 | E32: 1 | F32: =D32*E32/100 -> 0.01 | G32: BUENO
A33: b- Llaves y conductos | D33: 1 | E33: 1 | F33: 0.01 | G33: BUENO
A34: 11) Cielorrasos | D34: 2 | E34: 1 | F34: 0.02 | G34: BUENO
A35: 12) Revoques finos y/o de frentes | D35: 4 | E35: 1 | F35: 0.04 | G35: BUENO
A36: 13) Pisos y zócalos | D36: 8 | E36: 1 | F36: 0.08 | G36: BUENO
A37: 14) Revestimientos | D37: 4 | E37: 1 | F37: 0.04 | G37: BUENO
A38: 15) Artefactos cocina y baño | D38: 4 | E38: 1 | F38: 0.04 | G38: BUENO
A39: 16) Carpintería
A40: a- Marcos | D40: 3 | E40: 1 | F40: =D40*E40/100 -> 0.03 | G40: BUENO
A41: b- Hojas y herrajes | D41: 5 | E41: 1 | F41: 0.05 | G41: BUENO
A42: 17) Herrería | D42: 3 | E42: 1 | F42: 0.03 | G42: BUENO
A43: 18) Pintura | D43: 4 | E43: 1 | F43: 0.04 | G43: BUENO
A44: 19) Vidrios | D44: 1 | E44: 1 | F44: 0.01 | G44: BUENO
A45: 29) Cercos y veredas | D45: 3 | E45: 1 | F45: 0.03 | G45: BUENO
A46: 21) Detalles de terminación | D46: 2 | E46: 1 | F46: 0.02 | G46: BUENO
D48: =D19+D20+D21+D22+D23+D24+D25+D27+D28+D29+D30+D32+D33+D34+D35+D36+D37+D38+D40+D41+D42+D43+D44+D45+D46 -> 100 | F48: =SUM(F19:F47) -> 1 | G48: BUENO
A50: POR CONSIGUIENTE, EL TRABAJO REALIZADO EN OBRA ASCIENDE A : | F50: =F48 -> 1
A52: El Profesional declara bajo juramento que la presente acta de estado de obra ha sido cumplimentada de
A53: acuerdo con los hechos existentes realizados a la fecha y | E53: =Datos!D71 -> no | F53: será responsable de la
A54: terminación de los trabajos faltantes.
A55: El Propietario y el Profesional, autorizan al Colegio de Técnicos de la Provincia de Buenos Aires a inspec-
A56: cionar la obra a los fines de verificar los estados de obra declarados.
A57: Se firma en | B57: 3 ejemplares | C57: el día | D57: =Datos!K38 -> 0 | F57: del mes de | G57: =Datos!K40 -> 0
A58: del año | B58: =Datos!K41 -> 0 | C58: .
A64: COMITENTE: | E64: PROFESIONAL:
A65: =Datos!K29 -> 0 | E65: =Datos!K18 -> 0
E66: MAT. CTPBA | F66: =Datos!K26 -> 0

Sheet Datos
A1: LA UTILIZACIÓN DE ESTA PLANILLA, EXIME DE TODA RESPONSABILIDAD A JULIO A. ESTOUP Y A JUAN G. ESTOUP, POR CUALQUIER ERROR INVOLUNTARIO COMETIDO EN EL CÁLCULO
A2: DE HONORARIOS, JUBILATORIOS Y/O CUOTA DE EJERCICIO PROFESIONAL SU USO ES GRATUITO Y OPTATIVO. LOS VALORES RESULTANTES DE SU APLICACIÓN DEBERÁN SER
A3: VERIFICADOS POR EL PROFESIONAL ACTUANTE, QUIEN SERÁ ÚNICO RESPONSABLE POR PERJUICIOS PROPIOS Y/O A TERCEROS INVOLUCRADOS.
B4: Hoja de cálculo para confección de contrato, planilla anexa, estado de obra, ley 12490. - | W4: CATEGORIZACIÓN DE VIV. UNIFAMILIARES (Marcar 1 en el recuadro correspond.)
B5: Distribución Gratuita | X5: Con dependencia de servicio (Se interpreta como, habitad correspondiente a personal de servicio)
B6: MEDICIÓN - PROYECTO Y DIRECCIÓN - DIRECCIÓN EJECUTIVA - | X6: Dos o mas cocheras cubiertas o semicubiertas
B7: DEMOLICIÓN Y REP. TÉCNICA | X7: Aire acondicionado central u otras instalaciones especiales
B8: Gentileza Agrim - M.M. de Obras Julio A. ESTOUP - | O8: julio_estoup@hotmail.com | X8: Cuatro o mas baños o toilette
D9: Ing. Civil - M.M. de Obras Juan G. ESTOUP - | O9: juan_estoup@hotmail.com | X9: Sauna u/o piscina con espejo de agua mayor a 30,00 m²
X10: Construcción de mas de 150,00 m² totales de superficie (Cubierta y Semicubierta)
B11: LA CATEGORIZACIÓN DE VIVIENDA UNIFAMILIAR SE REALIZA DESDE ESTA PESTAÑA | X11: Ubicada en Country, B° Cerrado, Club de Campo u otras Urbanizaciones Privadas
B12: Vig. desde | F12: HONORARIOS MÍNIMOS | V12: =SUM(W5:W12) -> 0 | X12: Mas de 3 niveles o plantas
B13: 2019-10-01 | F13: Por cualquier tarea profesional | S13: 6500 | X13: =IF(Y13=Y20,"VIVIENDA UNIFAMILIAR CATEGORIA A",IF(Y13=Y21,"VIVIENDA UNIFAMILIAR CATEGORIA B",IF(Y13=Y22,"VIVIENDA UNIFAMILIAR CATEGORIA C",IF(Y13=Y23,"VIVIENDA UNIFAMILIAR CATEGORIA D","VIVIENDA UNIFAMILIAR CATEGORIA E")))) -> VIVIENDA UNIFAMILIAR CATEGORIA A | Y13: =IF(V12=0,Y20,IF(V12=2,Y22,IF(V12=3,Y23,IF(V12=4,Y24,IF(V12>=5,Y24,IF(W11=1,Y22,Y21)))))) -> 18200
B14: FC | C14: 1.3 | F14: Medición y conf. de planos para viviendas de Categoria A | S14: 13000 | X14: VALOR DE OBRA SEGÚN CAAITBA y COLEGIO de TECNICOS POR m²
B15: UR | C15: 26000 | F15: Med. y conf. de planos de viv. de otras Categ. depós, galp, comercio | S15: 20800 | X15: 1. VIVIENDA
X16: 1.1 De interés social
A17: 1 | B17: DATOS DEL PROFESIONAL | X17: 1.1.1 Prefabricadas económicas de madera | Y17: =ROUNDUP(0.075*C15,0) -> 1950
I18: NOMBRE Y APELLIDO | X18: 1.1.2 Menores de 70 m2 (individuales) Art. 25º Dcto.6964/65
I19: DNI Nº | X19: 1.2 Unifamiliares (Inclusive en viviendas aisladas afectadas a PH)
I20: DOMICILIO CALLE y Nº | X20: 1.2.1 De Categoria A (No cumple con ningún items) | Y20: =ROUNDUP(0.7*C15,0) -> 18200
I21: PISO/DEP. | X21: 1.2.2 De Categoria B (Cumple por lo menos con 1 items) | Y21: =ROUNDUP(0.8*C15,0) -> 20800
I22: LOCALIDAD | X22: 1.2.3 De Categoria C (Cumple por lo menos con 2 items ó en B° Cerrado) | Y22: =ROUNDUP(1*C15,0) -> 26000
I23: PARTIDO | X23: 1.2.4 De Categoria D (Cumple por lo menos con 3 items) | Y23: =ROUNDUP(1.2*C15,0) -> 31200
I24: TITULO | X24: 1.2.5 De Categoría E (Cumple por lo menos con 4 items) | Y24: =ROUNDUP(1.4*C15,0) -> 36400
I25: CUIT
I26: MATRICULA CTPBA | X26: 1.3 Multifamiliares
I27: Nº AFILIADO A LA CAJA | X27: 1.3.1 En construcciones hasta 4 niveles o plantas | Y27: =ROUNDUP(0.9*C15,0) -> 23400
A28: 2 | B28: DATOS DEL COMITENTE | X28: 1.3.2 En construcciones de mas de 4 niveles o plantas | Y28: =ROUNDUP(1*C15,0) -> 26000
I29: NOMBRE Y APELLIDO | X29: 1.3.3 Las ant. (Ubic. en Country, B° Cerrado, Club de Campo o en Urb. privadas | Y29: =ROUNDUP(1.1*C15,0) -> 28600 | AB29: =SUM(D67:D70,D78:D84) -> 0 | AC29: =IF((AB29>=70)*AND(L67=Y35),"REVISAR CATEGORIA DE VIVIENDA < 70 m2",".") -> . | AD29: =CONCATENATE(AC29,AC30,AC31,AC32) -> ....
I30: DNI Nº | X30: 1.5 Industrializadas | Y30: =ROUNDUP(0.5*C15,0) -> 13000 | AB30: =AB29 -> 0 | AC30: =IF((AB30>=70)*AND(L68=Y35),"REVISAR CATEGORIA DE VIVIENDA < 70 m2",".") -> .
I31: CUIL | X31: 1.6 PISCINAS (m² por espejo de agua) | AB31: 0 | AC31: =IF((AB31>=70)*AND(L69=Y35),"REVISAR CATEGORIA DE VIVIENDA < 70 m2",".") -> .
I32: DOMICILIO CALLE | X32: 1.6.1 Construidas en Hº Aº, revestidas, con equipo de bombeo | Y32: =ROUNDUP(0.5*C15,0) -> 13000 | AB32: 0 | AC32: =IF((AB32>=70)*AND(L70=Y35),"REVISAR CATEGORIA DE VIVIENDA < 70 m2",".") -> .
I33: NUMERO | X33: 1.6.2 Las no comprendidas en el ítem 1.6.1 | Y33: =ROUNDUP(0.25*C15,0) -> 6500 | AB33: 0 | AC33: =IF((AB33>=70)*AND(I78=Y35),"REVISAR CATEGORIA DE VIVIENDA < 70 m2",".") -> . | AD33: =CONCATENATE(AC33,AC34,AC35,AC36) -> ....
I34: LOCALIDAD | X34: 2. INDUSTRIA Y ALMACENAJE | AB34: 0 | AC34: =IF((AB34>=70)*AND(I79=Y35),"REVISAR CATEGORIA DE VIVIENDA < 70 m2",".") -> .
I35: PARTIDO | X35: 2.1 Depositos e Industrias De baja complej. Estruc. De hasta 12 m de Luz, altura hasta 6 m | AB35: 0 | AC35: =IF((AB35>=70)*AND(I83=Y35),"REVISAR CATEGORIA DE VIVIENDA < 70 m2",".") -> .
A36: 3 | B36: FECHA Y LUGAR DE CONTRATACIÓN | N36: Fecha actual: | R36: =TODAY() -> 2020-06-26 | X36: con dependencias de hasta un 10% de la sup. Total | Y36: =ROUNDUP(0.3*C15,0) -> 7800 | AB36: 0 | AC36: =IF((AB36>=70)*AND(I84=Y35),"REVISAR CATEGORIA DE VIVIENDA < 70 m2",".") -> .
I37: CIUDAD | X37: 2.1.1 Depositos que superen parametros del item 2.1 | Y37: =ROUNDUP(0.45*C15,0) -> 11700
I38: DÍA (en letras) | X38: 2.2 Industrias que superen parametros del item 2.1 | Y38: =ROUNDUP(0.6*C15,0) -> 15600 | AB38: PROYECTO Y DIRECCIÓN | AD38: =R73 -> 0 | AE38: hasta | AF38: parcial | AG38: excedente | AH38: % | AI38: parcial | AJ38: total
I39: DÍA (en número) | X39: 2.3 Alta complejidad, laboratorios industriales | Y39: =ROUNDUP(1*C15,0) -> 26000 | AB39: =1000000*C14 -> 1300000 | AC39: 0.085 | AD39: =AB39*AC39 -> 110500 | AG39: =IF(AD38<=AB39,AD38,0) -> 0 | AH39: =IF(AD38<=AB39,AC39,0) -> 0.085 | AI39: =AG39*AH39 -> 0 | AJ39: =AI39+AF39 -> 0
I40: MES (en letras) | X40: 2.4 Invernáculos, locales para cría de animales | Y40: =ROUNDUP(0.1*C15,0) -> 2600 | AB40: =5000000*C14 -> 6500000 | AC40: 0.08 | AD40: =(AB40-AB39)*AC40+AD39 -> 526500 | AE40: =IF((AD38>AB39)*AND(AD38<=AB40),AB39,0) -> 0 | AF40: =IF(AE40=AB39,AD39,0) -> 0 | AG40: =IF(AE40=AB39,AD38-AB39,0) -> 0 | AH40: =IF(AE40=AB39,AC40,0) -> 0 | AI40: 0 | AJ40: 0
I41: AÑO (en letras) | X41: 2.5 Tinglados y cobertizos (sup. cubierta = sup. semicubierta) | Y41: =ROUNDUP(0.2*C15,0) -> 5200 | AB41: =10000000*C14 -> 13000000 | AC41: 0.075 | AD41: =(AB41-AB40)*AC41+AD40 -> 1014000 | AE41: =IF((AD38>AB40)*AND(AD38<=AB41),AB40,0) -> 0 | AF41: =IF(AE41=AB40,AD40,0) -> 0 | AG41: =IF(AE41=AB40,AD38-AB40,0) -> 0 | AH41: =IF(AE41=AB40,AC41,0) -> 0 | AI41: 0 | AJ41: 0
I42: AÑO (en número) | X42: 2.6 Almacenamientos, silos en m³ | AB42: =30000000*C14 -> 39000000 | AC42: 0.07 | AD42: =(AB42-AB41)*AC42+AD41 -> 2834000 | AE42: =IF((AD38>AB41)*AND(AD38<=AB42),AB41,0) -> 0 | AF42: =IF(AE42=AB41,AD41,0) -> 0 | AG42: =IF(AE42=AB41,AD38-AB41,0) -> 0 | AH42: =IF(AE42=AB41,AC42,0) -> 0 | AI42: 0 | AJ42: 0
A43: 4 | B43: DATOS DE LA OBRA | X43: 2.1.1 Hormigòn Armado | Y43: =ROUNDUP(0.1*C15,0) -> 2600 | AB43: =100000000*C14 -> 130000000 | AC43: 0.065 | AD43: =(AB43-AB42)*AC43+AD42 -> 8749000 | AE43: =IF((AD38>AB42)*AND(AD38<=AB43),AB42,0) -> 0 | AF43: =IF(AE43=AB42,AD42,0) -> 0 | AG43: =IF(AE43=AB42,AD38-AB42,0) -> 0 | AH43: =IF(AE43=AB42,AC43,0) -> 0 | AI43: 0 | AJ43: 0
I44: DESTINO | X44: 2.1.2 Mamposteria | Y44: =ROUNDUP(0.08*C15,0) -> 2080 | AB44: =100000001*C14 -> 130000001.3 | AC44: 0.06 | AE44: =IF(AD38>AB43,AB43,0) -> 0 | AF44: =IF(AE44=AB43,AD43,0) -> 0 | AG44: =IF(AE44=AB43,AD38-AB43,0) -> 0 | AH44: =IF(AE44=AB43,AC44,0) -> 0 | AI44: 0 | AJ44: 0
I45: CALLE | X45: 2.1.3 Chapa | Y45: =ROUNDUP(0.07*C15,0) -> 1820 | AE45: =SUM(AE39:AE44) -> 0 | AF45: 0 | AG45: 0 | AH45: 0.085 | AI45: 0 | AJ45: 0
I46: Nº | X46: 3. COMERCIO | AB46: MEDICIÓN | AD46: =R86 -> 0 | AE46: hasta | AF46: parcial | AG46: excedente | AH46: % | AI46: parcial | AJ46: total
I47: LOCALIDAD | X47: 3.1 Minorista hasta 50 m² | Y47: =ROUNDUP(0.5*C15,0) -> 13000 | AB47: =200000*C14 -> 260000 | AC47: 0.0125 | AD47: =AB47*AC47 -> 3250 | AG47: =IF(AD46<=AB47,AD46,0) -> 0 | AH47: =IF(AD46<=AB47,AC47,0) -> 0.0125 | AI47: =AG47*AH47 -> 0 | AJ47: =AI47+AF47 -> 0
I48: PARTIDO | X48: 3.2 Minorista o mayorista mayor de 50 m² y hasta 300 m². | Y48: =ROUNDUP(0.7*C15,0) -> 18200 | AB48: =1000000*C14 -> 1300000 | AC48: 0.01 | AD48: =(AB48-AB47)*AC48+AD47 -> 13650 | AE48: =IF((AD46>AB47)*AND(AD46<=AB48),AB47,0) -> 0 | AF48: =IF(AE48=AB47,AD47,0) -> 0 | AG48: =IF(AE48=AB47,AD46-AE48,0) -> 0 | AH48: =IF(AE48=AB47,AC48,0) -> 0 | AI48: =AG48*AH48 -> 0 | AJ48: =AI48+AF48 -> 0
I49: CIRCUNSCRIPCIÓN | X49: 3.3 Minorista o mayorista mayor de 300 m² | Y49: =ROUNDUP(0.8*C15,0) -> 20800 | AB49: =2000000*C14 -> 2600000 | AC49: 0.007 | AD49: =(AB49-AB48)*AC49+AD48 -> 22750 | AE49: =IF((AD46>AB48)*AND(AD46<=AB49),AB48,0) -> 0 | AF49: =IF(AE49=AB48,AD48,0) -> 0 | AG49: =IF(AE49=AB48,AD46-AE49,0) -> 0 | AH49: =IF(AE49=AB48,AC49,0) -> 0 | AI49: =AG49*AH49 -> 0 | AJ49: =AI49+AF49 -> 0
I50: SECCIÓN | X50: 3.4 Shopping | Y50: =ROUNDUP(1.4*C15,0) -> 36400 | AB50: =5000000*C14 -> 6500000 | AC50: 0.005 | AD50: =(AB50-AB49)*AC50+AD49 -> 42250 | AE50: =IF((AD46>AB49)*AND(AD46<=AB50),AB49,0) -> 0 | AF50: =IF(AE50=AB49,AD49,0) -> 0 | AG50: =IF(AE50=AB49,AD46-AE50,0) -> 0 | AH50: =IF(AE50=AB49,AC50,0) -> 0 | AI50: =AG50*AH50 -> 0 | AJ50: =AI50+AF50 -> 0
I51: MANZANA | X51: 4. CULTURA, ESPECTÁCULOS Y ESPARCIMIENTO | AB51: =5000001*C14 -> 6500001.3 | AC51: 0.003 | AE51: =IF(AD46>AB50,AB50,0) -> 0 | AF51: =IF(AE51=AB50,AD50,0) -> 0 | AG51: =IF(AE51=AB50,AD46-AE51,0) -> 0 | AH51: =IF(AE51=AB50,AC51,0) -> 0 | AI51: =AG51*AH51 -> 0 | AJ51: =AI51+AF51 -> 0
I52: PARCELA | X52: 4.1 Bibliotecas públicas | Y52: =ROUNDUP(1*C15,0) -> 26000 | AE52: =SUM(AE47:AE51) -> 0 | AF52: 0 | AG52: 0 | AH52: 0.0125 | AI52: 0 | AJ52: 0
I53: U.F. | X53: 4.2 Salones de fiesta, locales bailables | Y53: =ROUNDUP(1*C15,0) -> 26000 | AB53: PROYECTO Y DIRECCIÓN | AD53: =SUM(R81:R85) -> 0 | AE53: hasta | AF53: parcial | AG53: excedente | AH53: % | AI53: parcial | AJ53: total
A54: 5 | B54: TAREA ENCOMENDADA | X54: 4.3 Cafés concert o auditorios | Y54: =ROUNDUP(1*C15,0) -> 26000 | AB54: =1000000*C14 -> 1300000 | AC54: 0.085 | AD54: =AB54*AC54 -> 110500 | AG54: =IF(AD53<=AB54,AD53,0) -> 0 | AH54: =IF(AD53<=AB54,AC54,0) -> 0.085 | AI54: =AG54*AH54 -> 0 | AJ54: =AI54+AF54 -> 0
I55: DESCRIPCIÓN | X55: 4.4 Cines | Y55: =ROUNDUP(1*C15,0) -> 26000 | AB55: =5000000*C14 -> 6500000 | AC55: 0.08 | AD55: =(AB55-AB54)*AC55+AD54 -> 526500 | AE55: =IF((AD53>AB54)*AND(AD53<=AB55),AB54,0) -> 0 | AF55: =IF(AE55=AB54,AD54,0) -> 0 | AG55: =IF(AE55=AB54,AD53-AB54,0) -> 0 | AH55: =IF(AE55=AB54,AC55,0) -> 0 | AI55: 0 | AJ55: 0
A56: 6 | B56: DATOS COMPLEMENTARIOS | X56: 4.5 Teatros | Y56: =ROUNDUP(1*C15,0) -> 26000 | AB56: =10000000*C14 -> 13000000 | AC56: 0.075 | AD56: =(AB56-AB55)*AC56+AD55 -> 1014000 | AE56: =IF((AD53>AB55)*AND(AD53<=AB56),AB55,0) -> 0 | AF56: =IF(AE56=AB55,AD55,0) -> 0 | AG56: =IF(AE56=AB55,AD53-AB55,0) -> 0 | AH56: =IF(AE56=AB55,AC56,0) -> 0 | AI56: 0 | AJ56: 0
I57: VIGENCIA ( meses en letras) | X57: 4.6 Casinos, salas de juegos | Y57: =ROUNDUP(1.4*C15,0) -> 36400 | AB57: =30000000*C14 -> 39000000 | AC57: 0.07 | AD57: =(AB57-AB56)*AC57+AD56 -> 2834000 | AE57: =IF((AD53>AB56)*AND(AD53<=AB57),AB56,0) -> 0 | AF57: =IF(AE57=AB56,AD56,0) -> 0 | AG57: =IF(AE57=AB56,AD53-AB56,0) -> 0 | AH57: =IF(AE57=AB56,AC57,0) -> 0 | AI57: 0 | AJ57: 0
I58: VIGENCIA (meses en números) | X58: 4.7 Autocines | Y58: =ROUNDUP(0.375*C15,0) -> 9750 | AB58: =100000000*C14 -> 130000000 | AC58: 0.065 | AD58: =(AB58-AB57)*AC58+AD57 -> 8749000 | AE58: =IF((AD53>AB57)*AND(AD53<=AB58),AB57,0) -> 0 | AF58: =IF(AE58=AB57,AD57,0) -> 0 | AG58: =IF(AE58=AB57,AD53-AB57,0) -> 0 | AH58: =IF(AE58=AB57,AC58,0) -> 0 | AI58: 0 | AJ58: 0
I59: CARÁCTER (Originario/Reajuste/Ampliat.) | N59: =IF(K59="reajuste","Cont. Anterior en $","") ->  | X59: 4.8 Anfiteatros | Y59: =ROUNDUP(0.875*C15,0) -> 22750 | AB59: =100000001*C14 -> 130000001.3 | AC59: 0.06 | AE59: =IF(AD53>AB58,AB58,0) -> 0 | AF59: =IF(AE59=AB58,AD58,0) -> 0 | AG59: =IF(AE59=AB58,AD53-AB58,0) -> 0 | AH59: =IF(AE59=AB58,AC59,0) -> 0 | AI59: 0 | AJ59: 0
I60: JURISDICCIÓN TRIBUNALES | X60: 5. EDUCACIÓN | AE60: =SUM(AE54:AE59) -> 0 | AF60: 0 | AG60: 0 | AH60: 0.085 | AI60: 0 | AJ60: 0
A61: 7 | B61: FORMA DE CALCULO | X61: 5.1 EGB, JI, EM, EMA y T, hasta 200 m2 | Y61: =ROUNDUP(0.5*C15,0) -> 13000 | AE61: Ho | AF61: m2
I62: PROYECTO 60% 50% 0% | M62: Resolución del CTPBA | X62: 5.2 EGB, JI, EM, EMA y T, mayores de 200 m2 | Y62: =ROUNDUP(1*C15,0) -> 26000 | AD62: =IF((AE62<Y149)*AND(AF62<70)*AND(L78=Y20)*AND(AG62=0),"VER HONORARIO MINIMO VIVIENDA < 70 m2",".") -> . | AE62: =H115 -> 0 | AF62: =SUM(D78:D84) -> 0 | AG62: =SUM(D67:G70) -> 0 | AH62: =CONCATENATE(AD62,AD63) -> ..
I63: DIRECCIÓN 40% 30% 0% | M63: Resolución del CTPBA | X63: 5.3 Escuelas, institutos, facultades (cualquier nivel) | Y63: =ROUNDUP(1.4*C15,0) -> 36400 | AD63: =IF((AE63<Y150)*AND(AF63>=70)*AND(L78=Y24)*AND(AG63=0),"VER HONORARIO MINIMO VIVIENDA > 70 m2",".") -> . | AE63: =AE62 -> 0 | AF63: =AF62 -> 0 | AG63: 0
B64: SUPLEMENTO 100- 80-75-60-45-40-30-20-15-0% | M64: =IF(K64=0%,"Otro profesional asume la construcción",IF(K64<=20%,"Estudio de Proyecto (Otro Profesional hizo el proyecto)",IF(K64<=45%,"Contratos Separados",IF(K64>=75%,"Administración",IF(K64=60%,IF(K63=40%,"Contratos Separados y Estudio de Proyecto","Administración")))))) -> Otro profesional asume la construcción | X64: 6. SALUD | AD64: =IF((AE64<Y150)*AND(I78=AF76)*AND(AG64=0),"VER HONORARIO MINIMO COMERCIO",".") -> . | AE64: 0 | AF64: =AF63 -> 0 | AG64: 0
A65: 8 | B65: OBRAS NUEVAS ( PROYECTO Y DIRECCIÓN ) | X65: 6.1 Dispensarios, salas de primeros auxilios | Y65: =ROUNDUP(0.7*C15,0) -> 18200 | AB65: =IF(H115>(R115+0.001),"HONORARIO POR MEDICION CONVENIDO","HONORARIO MINIMO") -> HONORARIO MINIMO
B66: VALOR DE OBRA | H66: Factor de corrección a la fecha | R66: =C14 -> 1.3 | X66: 6.2 Consultorios, laboratorios de análisis clínicos | Y66: =ROUNDUP(0.8*C15,0) -> 20800 | AB66: =IF(H115<(R115-0.001)," INSUFICIENTE",".") -> .
B67: Categ. 8º | H67: m² a razón de | P67: $/m² = | R67: =+D67*L67 -> 0 | X67: 6.3 Clínicas sanatorios, e institutos geriátricos | Y67: =ROUNDUP(1*C15,0) -> 26000 | AB67: =IF(H134>=T134,".",IF(K59="Reajuste",".","MONTO DE CONTADO INSUFICIENTE")) -> .
B68: Categ. 8º | H68: m² a razón de | P68: $/m² = | R68: =+D68*L68 -> 0 | X68: 6.4 Hospitales y/o alta complejidad | Y68: =ROUNDUP(1.4*C15,0) -> 36400 | AB68: =IF(H134>H129+0.001,"MONTO LIQUIDADO SUPERIOR AL TOTAL",".") -> .
B69: Categ. 8º | H69: m² a razón de | P69: $/m² = | R69: =+D69*L69 -> 0 | X69: 7. BANCOS Y FINANZAS
B70: Categ. 8º | H70: m² a razón de | P70: $/m² = | R70: =+D70*L70 -> 0 | X70: 7.1 Bancos, financieras, créditos y seguros | Y70: =ROUNDUP(1.25*C15,0) -> 32500 | AB70: REPRESENTACIÓN TÉCNICA | AD70: =R108 -> 0 | AE70: hasta | AF70: parcial | AG70: excedente | AH70: % | AI70: parcial | AJ70: total
B71: T. Faltant. | D71: no | E71: =IF(D71="NO",0,IF(L84=L83/2,D81+D82+D83+D84/2,D81+D82+D83+D84)) -> 0 | G71: m² a razón calc. | J71: =IF(D71="NO",0,R71/E71/O71) -> 0 | M71: $/m² | N71: x | O71: =IF(D71="NO",0,100%-'Acta Est. Obra'!F48) -> 0 | R71: =IF(D71="SI",(100%-'Acta Est. Obra'!F48)*(D81*L81+D82*L82+D83*L83+D84*L84),0) -> 0 | X71: 8. HOTELERIA | BB71: Si | BC71: No
B72: Por Computo y Presupuesto................................ | P72: $/m² = | R72: =L72 -> 0 | X72: 8.1 Hosterías, hospedajes y pensiones | Y72: =ROUNDUP(0.8*C15,0) -> 20800 | AB72: =1000000*C14 -> 1300000 | AC72: 0.05 | AD72: =AB72*AC72 -> 65000 | AG72: =IF(AD70<=AB72,AD70,0) -> 0 | AH72: =IF(AD70<=AB72,AC72,0) -> 0.05 | AI72: =AG72*AH72 -> 0 | AJ72: =AI72+AF72 -> 0
B73: HONORARIO PROYECTO Y DIRECCIÓN | L73: =AJ45 -> 0 | P73: TOTAL | R73: =SUM(R67,R68,R69,R70,R71,L72) -> 0 | X73: 8.2 Hoteles 2 y 3 estrellas | Y73: =ROUNDUP(1*C15,0) -> 26000 | AB73: =5000000*C14 -> 6500000 | AC73: 0.04 | AD73: =(AB73-AB72)*AC73+AD72 -> 273000 | AE73: =IF((AD70>AB72)*AND(AD70<=AB73),AB72,0) -> 0 | AF73: =IF(AE73=AB72,AD72,0) -> 0 | AG73: =IF(AE73=AB72,AD70-AB72,0) -> 0 | AH73: =IF(AE73=AB72,AC73,0) -> 0 | AI73: 0 | AJ73: 0
B74: hasta | D74: =AE45 -> 0 | H74: acumulado | L74: =AF45 -> 0 | X74: 8.3 Albergues transitorios | Y74: =ROUNDUP(1.2*C15,0) -> 31200 | AB74: =10000000*C14 -> 13000000 | AC74: 0.03 | AD74: 468000 | AE74: =IF((AD70>AB73)*AND(AD70<=AB74),AB73,0) -> 0 | AF74: 0 | AG74: =IF(AE74=AB73,AD70-AB73,0) -> 0 | AH74: 0 | AI74: 0 | AJ74: 0
B75: el | D75: =AH45 -> 0.085 | H75: s/ siguientes | L75: =AG45 -> 0 | Q75: = | R75: =AI45 -> 0 | X75: 8.4 Hoteles 4 y 5 estrellas | Y75: =ROUNDUP(2*C15,0) -> 52000 | AB75: =20000000*C14 -> 26000000 | AC75: 0.025 | AD75: 793000 | AE75: =IF((AD70>AB74)*AND(AD70<=AB75),AB74,0) -> 0 | AF75: 0 | AG75: =IF(AE75=AB74,AD70-AB74,0) -> 0 | AH75: 0 | AI75: 0 | AJ75: 0
A76: 9 | B76: OBRAS CONSTRUIDAS ( MEDICIÓN ) | X76: 9. GASTRONOMÍA | AB76: =40000000*C14 -> 52000000 | AC76: 0.02 | AD76: 1313000 | AE76: =IF((AD70>AB75)*AND(AD70<=AB76),AB75,0) -> 0 | AF76: 0 | AG76: =IF(AE76=AB75,AD70-AB75,0) -> 0 | AH76: 0 | AI76: 0 | AJ76: 0
B77: VALOR DE OBRA | F77: ¿ES MEDICIÓN DE VIVIENDA CATEGORIA A ÚNICAMENTE? | U77: si | X77: 9.1 Parrillas, casas de comida | Y77: =ROUNDUP(0.7*C15,0) -> 18200 | AB77: =80000000*C14 -> 104000000 | AC77: 0.015 | AD77: =(AB77-AB76)*AC77+AD76 -> 2093000 | AE77: =IF((AD70>AB76)*AND(AD70<=AB77),AB76,0) -> 0 | AF77: =IF(AE77=AB76,AD76,0) -> 0 | AG77: =IF(AE77=AB76,AD70-AB76,0) -> 0 | AH77: =IF(AE77=AB76,AC77,0) -> 0 | AI77: 0 | AJ77: 0
B78: Con Ante | H78: m² a razón de | P78: $/m² = | R78: =+D78*L78 -> 0 | X78: 9.2 Restaurantes, bares, confiterías, pizzerías | Y78: =ROUNDUP(0.8*C15,0) -> 20800 | AB78: =160000000*C14 -> 208000000 | AC78: 0.01 | AD78: 3133000 | AE78: =IF((AD70>AB77)*AND(AD70<=AB78),AB77,0) -> 0 | AF78: 0 | AG78: =IF(AE78=AB77,AD70-AB77,0) -> 0 | AH78: 0 | AI78: =AG78*AH78 -> 0 | AJ78: =AI78+AF78 -> 0
B79: Con Ante | H79: m² a razón de | P79: $/m² = | R79: =+D79*L79 -> 0 | X79: 9.3 Restaurantes de categoría | Y79: =ROUNDUP(1.2*C15,0) -> 31200 | AB79: =160000001*C14 -> 208000001.3 | AC79: 0.005 | AE79: =IF(AD70>AB78,AB78,0) -> 0 | AF79: 0 | AG79: =IF(AE79=AB78,AD70-AB78,0) -> 0 | AH79: 0 | AI79: =AG79*AH79 -> 0 | AJ79: =AI79+AF79 -> 0
B80: Con Ante | H80: m² a razón de | P80: $/m² = | R80: =+D80*L80 -> 0 | X80: 10. CULTO, ARQUITECTURA FUNERARIA
B81: Cubierta | H81: m² cub. a razón de | P81: $/m² = | R81: =IF(D71="SI",+D81*L81*'Acta Est. Obra'!F48,+D81*L81) -> 0 | X81: 10.1 Capillas o equivalentes en otros cultos | Y81: =ROUNDUP(0.7*C15,0) -> 18200
B82: Cubierta | H82: m² cub. a razón de | P82: $/m² = | R82: =IF(D71="SI",+D82*L82*'Acta Est. Obra'!F48,+D82*L82) -> 0 | X82: 10.2 Iglesias o equivalentes en otros cultos | Y82: =ROUNDUP(1*C15,0) -> 26000
B83: Semi | H83: m² cub. a razón de | P83: $/m² = | R83: =IF(D71="SI",+D83*L83*'Acta Est. Obra'!F48,+D83*L83) -> 0 | X83: 10.4 Velatorios | Y83: =ROUNDUP(1*C15,0) -> 26000 | AE83: =SUM(AE72:AE79) -> 0 | AF83: 0 | AG83: 0 | AH83: 0.05 | AI83: 0 | AJ83: 0
B84: Semi | H84: m² cub ó semic a razón de | P84: $/m² = | R84: =IF(D71="SI",+D84*L84*'Acta Est. Obra'!F48,+D84*L84) -> 0 | X84: 10.5 Cementerios | AE84: Ho | AF84: m2
B85: Sin Anteced. Por Computo y Presupuesto....... | J85: =D78+D79+D80+D81+D82+D83+D84 -> 0 | K85: =IF(J85=0,0,IF(U77="SI",S14,S15)) -> 0 | R85: =L85 -> 0 | X85: 10.5.1 Parquizaciones espacios exteriores | Y85: =ROUNDUP(0.025*C15,0) -> 650 | AB85: =IF(D78=81,Y72,0) -> 0
B86: HONORARIO MEDICIÓN | G86: =IF(L86=K85,"Mínimo",".") -> Mínimo | I86: =IF(K85=0,0,IF(U77<=70,S14,S15)) -> 0 | L86: =IF(AJ52>K85,AJ52,K85) -> 0 | P86: TOTAL | R86: =SUM(R78:R85) -> 0 | X86: 10.5.2 Nichos (por unidad) | Y86: =ROUNDUP(0.3*C15,0) -> 7800 | AB86: =IF(D78=82,Y73,0) -> 0
B87: hasta | D87: =AE52 -> 0 | H87: acumulado | L87: =AF52 -> 0 | X87: 10.5.3 Bóvedas o panteones (por m²) | Y87: =ROUNDUP(2.4*C15,0) -> 62400 | AB87: =IF(D78=83,Y74,0) -> 0
B88: el | D88: =AH52 -> 0.0125 | H88: s/ siguientes | L88: =AG52 -> 0 | Q88: = | R88: =AI52 -> 0 | X88: 11. ESPACIOS URBANOS DESCUBIERTOS | AB88: EJERCICIO PROFESIONAL DIRECTOR | AD88: Honorario | AE88: =H129 -> 0
L89: % | X89: 11.1 Tratamiento y/o parquizaciones esp. exterioes (plazas y parques) | Y89: =ROUNDUP(0.025*C15,0) -> 650 | AB89: Cuota | AC89: =ROUND(IF(AE88<=AC92,AF92,IF(AE88<=AE93,AF93,AE88*2.5%)),2) -> 374
B90: CONTRIBUCIÓN OBLIGATORIA ART. 29º - 10% DE | L90: =AJ60 -> 0 | X90: 11.2 Mantenimiento de plazas y parques s/cómp. y pres.
B91: hasta | D91: =AE60 -> 0 | H91: acumulado | L91: =AF60 -> 0 | X91: 11.3 Red vial
B92: el | D92: =AH60 -> 0.085 | H92: s/ siguientes | L92: =AG60 -> 0 | Q92: = | R92: =AI60 -> 0 | X92: 11.3.1 Mejorada | Y92: =ROUNDUP(0.02*C15,0) -> 520 | AB92: Hasta | AC92: 6103 | AF92: 374
X93: 11.3.2 Pavimento urbano (rígido) | Y93: =ROUNDUP(0.08*C15,0) -> 2080 | AB93: de | AC93: 6103.01 | AD93: a | AE93: 27718 | AF93: 692
A94: 10 | B94: DEMOLICIÓN | X94: 11.3.3 Pavimento urbano (flexible) | Y94: =ROUNDUP(0.06*C15,0) -> 1560 | AB94: mas de | AC94: 27718.01 | AD94: 0.025
B95: VALOR DE OBRA | X95: 11.3.4 Mantenimiento red vial s/cómp. y pres.
B96: Categ. 8º | H96: m² a razón de | P96: $/m2 = | R96: =+D96*L96 -> 0 | X96: 11.4 Estudios de suelo; por metro de perforación s/cómp. y pres.
P97: TOTAL | R97: =R96 -> 0 | X97: 11.5 Pavimento de caminos s/cómp. y pres.
B98: HONORARIO DEMOLICIÓN | L98: =R102 -> 0 | X98: 11.6 Movimiento de tierra s/cómp. y pres. | AB98: CONSTRUCCIÓN | AD98: ='Cert. Constructor'!M27 -> 0 | AE98: hasta | AF98: parcial | AG98: excedente | AH98: % | AI98: parcial | AJ98: total
B99: TOTAL | E99: =R96 -> 0 | X99: 11.7 Infraestructura (redes de servicios) s/cómp. y pres. | AB99: =1000000*C14 -> 1300000 | AC99: 0.017 | AD99: =AB99*AC99 -> 22100 | AG99: =IF(AD98<=AB99,AD98,0) -> 0 | AH99: =IF(AD98<=AB99,AC99,0) -> 0.017 | AI99: =AG99*AH99 -> 0 | AJ99: =AI99+AF99 -> 0
B100: porcentaje | E100: 0.085 | H100: 0.085 | R100: =I103*(K62+K63) -> 0 | X100: 11.8 Monumentos, decoración urbana s/cómp. y pres. | AB100: =5000000*C14 -> 6500000 | AC100: 0.016 | AD100: =(AB100-AB99)*AC100+AD99 -> 105300 | AE100: =IF((AD98>AB99)*AND(AD98<=AB100),AB99,0) -> 0 | AF100: =IF(AE100=AB99,AD99,0) -> 0 | AG100: =IF(AE100=AB99,AD98-AB99,0) -> 0 | AH100: =IF(AE100=AB99,AC100,0) -> 0 | AI100: 0 | AJ100: 0
B101: deprec/por est. | E101: 0.3 | H101: 30%; 45% ó 60% | L101: Suplemento de Dirección | R101: =IF(E103="SI",K64*I103,0) -> 0 | X101: 12. ADMINISTRACIÓN | AB101: =10000000*C14 -> 13000000 | AC101: 0.015 | AD101: =(AB101-AB100)*AC101+AD100 -> 202800 | AE101: =IF((AD98>AB100)*AND(AD98<=AB101),AB100,0) -> 0 | AF101: =IF(AE101=AB100,AD100,0) -> 0 | AG101: =IF(AE101=AB100,AD98-AB100,0) -> 0 | AH101: =IF(AE101=AB100,AC101,0) -> 0 | AI101: 0 | AJ101: 0
B102: depreciación | E102: 0.16 | H102: 0.16 | P102: TOTAL | R102: =SUM(R100,R101) -> 0 | X102: 12.1 Edificios privados | Y102: =ROUNDUP(1*C15,0) -> 26000 | AB102: =30000000*C14 -> 39000000 | AC102: 0.014 | AD102: =(AB102-AB101)*AC102+AD101 -> 566800 | AE102: =IF((AD98>AB101)*AND(AD98<=AB102),AB101,0) -> 0 | AF102: =IF(AE102=AB101,AD101,0) -> 0 | AG102: =IF(AE102=AB101,AD98-AB101,0) -> 0 | AH102: =IF(AE102=AB101,AC102,0) -> 0 | AI102: 0 | AJ102: 0
B103: Aplicar Supl. | E103: Si | H103: de | I103: =E99*E100*E101*E102 -> 0 | L103: Dirección por | O103: =IF( Datos!K64=0%,"Otro Prof. asume la Construcción",IF(Datos!K64<=20%,"Estudio de Proyecto",IF(Datos!K64<=45%,"Contratos Separados",IF(Datos!K64>=75%,"Direccion Ejecutiva",IF(Datos!K64=60%,IF(Datos!K63=40%,"Contratos Separados","Direccion Ejecutiva")))))) -> Otro Prof. asume la Construcción | X103: 12.2 Edificios públicos s/cómp. y pres. | AB103: =100000000*C14 -> 130000000 | AC103: 0.013 | AD103: =(AB103-AB102)*AC103+AD102 -> 1749800 | AE103: =IF((AD98>AB102)*AND(AD98<=AB103),AB102,0) -> 0 | AF103: =IF(AE103=AB102,AD102,0) -> 0 | AG103: =IF(AE103=AB102,AD98-AB102,0) -> 0 | AH103: =IF(AE103=AB102,AC103,0) -> 0 | AI103: 0 | AJ103: 0 | BB103: Si | BC103: No
X104: 12.3 Complejos penitenciarios | Y104: =ROUNDUP(1.5*C15,0) -> 39000
A105: 11 | B105: REPRESENTACIÓN TÉCNICA | X105: 13. DEPORTES Y RECREACIÓN | AB105: =100000001*C14 -> 130000001.3 | AC105: 0.012 | AE105: =IF(AD98>AB103,AB103,0) -> 0 | AF105: =IF(AE105=AB103,AD103,0) -> 0 | AG105: =IF(AE105=AB103,AD98-AB103,0) -> 0 | AH105: =IF(AE105=AB103,AC105,0) -> 0 | AI105: 0 | AJ105: 0
B106: VALOR DE OBRA | X106: 13.1 Club Social | Y106: =ROUNDUP(0.7*C15,0) -> 18200 | AE106: =SUM(AE99:AE105) -> 0 | AF106: 0 | AG106: 0 | AH106: 0.017 | AI106: 0 | AJ106: 0
C107: $ | R107: =D107 -> 0 | X107: 13.2 Club Deportivo
P108: TOTAL | R108: =R107 -> 0 | X108: 13.2.1 Sin tribuna con estructura de luces menores de 15 m. | Y108: =ROUNDUP(0.7*C15,0) -> 18200
B109: hasta | D109: =AE83 -> 0 | H109: acumulado | L109: =AF83 -> 0 | X109: 13.2.2 Sin tribuna con estructura de luces mayores de 15 m. | Y109: =ROUNDUP(1*C15,0) -> 26000 | AB109: EJERCICIO PROFESIONAL CONSTRUC | AD109: Honorario | AE109: ='Cert. Constructor'!J34 -> ASDASD
B110: el | D110: =AH83 -> 0.05 | H110: s/ siguientes | L110: =AG83 -> 0 | Q110: = | R110: =AI83 -> 0 | X110: 13.2.3 Con tribuna con estructura de luces menores de 15 m. | Y110: =ROUNDUP(1*C15,0) -> 26000 | AB110: Cuota | AC110: =ROUND(IF(AE109<=AC113,AF113,IF(AE109<=AE114,AF114,AE109*2.5%)),2) -> 
P111: TOTAL | R111: =AJ83 -> 0 | X111: 13.2.4 Con trib. c/ estruc. de luces may. de 15 m, isostátic. o hiperestáticas | Y111: =ROUNDUP(1*C15,0) -> 26000
X112: 13.2.5 Ídem mayores de 15 m. , especiales | Y112: =ROUNDUP(1*C15,0) -> 26000
A113: 12 | B113: DESCOMPOSICIÓN DEL HONORARIO | X113: 13.3 Natatorios ( PILETAS COMUNES ver 1.6) | AB113: Hasta | AC113: =AC92 -> 6103 | AF113: =AF92 -> 374
B114: Proyecto | F114: =K62 -> 0 | H114: =L73*K62 -> 0 | X114: 13.3.1 Descubiertos (espejo de agua) | Y114: =ROUNDUP(0.5*C15,0) -> 13000 | AB114: de | AC114: =AC93 -> 6103.01 | AD114: a | AE114: =AE93 -> 27718 | AF114: =AF93 -> 692
B115: Medición | D115: =G86 -> Mínimo | H115: =L86 -> 0 | X115: 13.3.2 Cubiertos (adicionar a superficies cubiertas deportivas) | Y115: =ROUNDUP(0.2*C15,0) -> 5200 | AB115: mas de | AC115: =AC94 -> 27718.01 | AD115: 0.025
B116: Demolición Proyecto | F116: =K62 -> 0 | H116: =I103*F116 -> 0 | X116: 13.4 Gimnasios | Y116: =ROUNDUP(0.5*C15,0) -> 13000
H117: Honorario parcial | L117: =H114+H115+H116 -> 0 | X117: 13.5 Canchas
B118: Dirección | F118: =K63 -> 0 | H118: =L73*K63 -> 0 | X118: 13.5.1 Descubiertas sobre césped o similar | Y118: =ROUNDUP(0.025*C15,0) -> 650
B119: =IF(E103="NO","-","Dirección demolición") -> Dirección demolición | F119: =K63 -> 0 | H119: =I103*K63 -> 0 | X119: 13.5.2 Descubiertas con tratamiento de pisos | Y119: =ROUNDUP(0.05*C15,0) -> 1300
B120: Suplem. de Dirección | F120: =IF(K64=0,"No se liquida",K64) -> No se liquida | H120: =L73*K64 -> 0 | X120: 14. COCHERAS
B121: Supl. Direcc.Demolic. | F121: =IF(E103="NO","No se liquida",K64) -> 0 | H121: =IF(E103="NO",,I103*F121) -> 0 | X121: 14.1 Planta única con cubierta liviana | Y121: =ROUNDUP(0.3*C15,0) -> 7800
B122: Informe Técnico | H122: =M122 -> 0 | X122: 14.2 Planta única con cubierta Hº Aº o estructuras especiales | Y122: =ROUNDUP(0.4*C15,0) -> 10400
H123: Honorario parcial | L123: =H118+H119+H120+H121+H122 -> 0 | X123: 14 3 Más de una planta sin elevadores mecánicos | Y123: =ROUNDUP(0.7*C15,0) -> 18200
X124: 14.4 Más de una planta con elevadores mecánicos | Y124: =ROUNDUP(1*C15,0) -> 26000
H125: HONORARIO TOTAL | L125: =IF((H114+H115+H116+H118+H119+H120+H121+H122)>S13,H114+H115+H116+H118+H119+H120+H121+H122,S13) -> 6500 | P125: =IF(L125=S13,"Mínimo",".") -> Mínimo | X125: 15. PLAYAS DE ESTACIONAMIENTO, MANIOBRAS Y EST. DE SERV.
X126: 15.1 Playas de estacionamiento y/o maniobras | Y126: =ROUNDUP(0.08*C15,0) -> 2080
A127: 13 | B127: HONORARIOS | X127: 15.2 Estaciones de servicio
B128: =IF(H129<L125,"EL HONORARIO CONVENIDO DEBE SER IGUAL O MAYOR AL HONORARIO TOTAL","") -> EL HONORARIO CONVENIDO DEBE SER IGUAL O MAYOR AL HONORARIO TOTAL | X128: 15.2.1 Playas de expendio cubierta o semicubierta | Y128: =ROUNDUP(0.6*C15,0) -> 15600
B129: HONORARIO CONVENIDO | K129: HONORARIO de CONTRATO | R129: =IF(K59="Reajuste",IF(H129-S59<0,0,H129-S59),H129) -> 0 | X129: 15.2.2 Playas de expendio descubierta | Y129: =ROUNDUP(0.2*C15,0) -> 5200
E130: PESOS EN LETRAS: | F130: =BA130 -> CERO CON 00/100 | X130: 15.2.3 Comercio o serv. anexos a estaciones de servicio liquidar según Item 3 COMERCIO | BA130: =Importe!F3 -> CERO CON 00/100
B131: =IF(L86=0,".",IF(H129>=I86,"","NO CUMPLE HONORARIO MINIMO POR MEDICIÓN")) -> . | P131: Honorario base(H0) | T131: =H129/R66 -> 0 | X131: 16. TRANSPORTE
A132: 14 | B132: PAGOS | X132: 16.1 Estaciones de ómnibus, ferroviarias | Y132: =ROUNDUP(1.2*C15,0) -> 31200
X133: 16.2 Aeropuertos | Y133: =ROUNDUP(1.4*C15,0) -> 36400
B134: Monto liquidado al contado | O134: Monto Contado Mínimo | T134: =ROUNDUP((IF(K59="Reajuste",R129,IF(AJ45>0,H114+H115+H116,H129))),0) -> 0 | X134: 17. ESTRUCTURAS COMUNES PARA EDIFICIOS
B135: =CONCATENATE(AB67,AB68) -> .. | L135: =H134/H129 ->  | O135: =IF(H134=T134,"",IF(K59="Reajuste","LO LIQUID. DEBE SER IGUAL AL MÍNIMO","")) ->  | X135: 17.1 Sin incidencia del viento | Y135: =ROUNDUP(0.15*C15,0) -> 3900
E136: PESOS EN LETRAS: | F136: =BA136 -> CERO CON 00/100 | X136: 17.2 Con incidencia del viento | Y136: =ROUNDUP(0.2*C15,0) -> 5200 | BA136: =Importe!T23 -> CERO CON 00/100
B137: En concepto de | X137: 17.3 Estructura por m³ | Y137: =ROUNDUP(1*C15,0) -> 26000
B138: Saldo | E138: =H138/H129 ->  | H138: =H129-H134 -> 0 | X138: 18. INSTALACIONES PARA EDIFICIOS
B139: En concepto de | X139: 18.1 HP y/CV, cada uno | Y139: =ROUNDUP(0.36*C15,0) -> 9360
X140: 18.2 Boca de alumbrado, gas, aire comprimiodo y de vacio | Y140: =ROUNDUP(0.08*C15,0) -> 2080
A141: 15 | B141: BOLETAS DE APORTE PREVISIONAL | X141: 18.3 Instalaciones de baja tensión(Telef-TV-alarm) por boca s/cómp. y pres. | Y141: =ROUNDUP(0.08*C15,0) -> 2080
B142: BOLETA 1 | I142: SUC. BANCO | X142: 18.4 Las no comprendidas en incisos anteriores s/cómp. y pres. | Y142: s/comp. y pres.
C143: FECHA DE PAGO | G143: (dd/mm/aaaa) | X143: VARIOS
I144: NUMERO DE BOLETA | X144: Modificaciones Internas s/comp. y pres.
B145: MONTO APORTE TOTAL | G145: =ROUND(H129/10,2) -> 0 | X145: Cambio de techos s/comp. y pres.
B146: BOLETA 2 | I146: SUC. BANCO | X146: Mantenimiento de Edificios s/comp. y pres.
C147: FECHA DE PAGO | G147: (dd/mm/aaaa)
I148: NUMERO DE BOLETA
B149: MONTO APORTE RESTANTE | G149: =ROUND(IF(K145>=G145,0,G145-K145),2) -> 0
B150: BOLETA 3 - ART. 29º | I150: SUC. BANCO
C151: FECHA DE PAGO | G151: (dd/mm/aaaa)
I152: NUMERO DE BOLETA
B153: MONTO TOTAL APORTE | G153: =ROUND(L90*0.1,1) -> 0
C154: IMPORTE EN LETRAS DEL TOTAL | K154: =Importe!T3 -> CERO CON 00/100
A155: 16 | B155: CUOTA DE EJERCICIO PROFESIONAL
C156: FECHA DE PAGO | G156: (dd/mm/aaaa)
I157: NUMERO DE BOLETA
I158: SUCURSAL BANCO | K158: MINIMO 748
I159: MONTO DEPOSITO | K159: =AC89 -> 374
A161: 17 | B161: RESUMEN DE GASTOS | K161: % EN RELACIÓN AL HON.
B162: ART. 29º | P162: =R162/R129 ->  | R162: =ROUNDUP(L90*0.1,0) -> 0
B163: APORTE JUBILA TORIO CAJA | P163: =R163/R129 ->  | R163: =SUM(K145,K149) -> 0
B164: CUOTA DE EJERCICIO PROFESIONAL (C.E.P.) | P164: =R164/R129 ->  | R164: =K159 -> 374
B165: TIMBRADO CONTRATO (1,35 %) - ARBA (1,20%) | P165: =R165/R129 ->  | R165: =R129*1.35% -> 0
N166: TOTAL | P166: =R166/R129 ->  | R166: =SUM(R162+R163+R164+R165) -> 374

Sheet Anexa
H5: MATRICULA PROFESIONAL Nº | I5: =Datos!K26 -> 0
A7: PLANILLA ANEXA CORRESPONDIENTE AL CONTRATO CELEBRADO EL DIA | G7: =Datos!K38 -> 0 | H7: DEL MES DE
A8: =Datos!K40 -> 0 | B8: DEL AÑO | C8: =Datos!K41 -> 0 | G8: ENTRE:
A9: =Datos!K29 -> 0 | C9: y | D9: =Datos!K18 -> 0 | F9: PARA LA OBRA: | H9: =Datos!K44 -> 0
A10: =Datos!K45 -> 0 | C10: =Datos!K46 -> 0 | D10: PARTIDO DE | E10: =Datos!K48 -> 0 | G10: CIRC. | H10: =Datos!K49 -> 0
A11: SECC. | B11: =Datos!K50 -> 0 | C11: MANZ. | D11: =Datos!K51 -> 0 | E11: PARC. | F11: =Datos!K52 -> 0 | G11: UF | H11: =Datos!K53 -> 0
A12: SISTEMA DE EJECUCIÓN DE LA OBRA POR | D12: =IF( Datos!K64=0%,"OTRO PROFESIONAL ASUME LA CONSTRUCCION",IF(Datos!K64<=20%,"ESTUDIO DE PROYECTO",IF(Datos!K64<=45%,"CONTRATOS SEPARADOS",IF(Datos!K64>=75%,"ADMINISTRACION",IF(Datos!K64=60%,IF(Datos!K63=40%,"CONTRATOS SEPARADOS","ADMINISTRACION")))))) -> OTRO PROFESIONAL ASUME LA CONSTRUCCION | G12: =IF(Datos!K64=45%,"y ESTUDIO DE PROYECTO",IF(Datos!K64=75%,"y ESTUDIO DE PROYECTO",IF(Datos!K64=100%,"y ESTUDIO DE PROYECTO",IF(Datos!K64=60%,IF(Datos!K63=40%,"y ESTUDIO DE PROYECTO","."),".")))) -> .
A13: 1) Según Título VIII, Art. 8º, Tabla XVIII - Proyecto y Dirección de Obra | F13: (FC) | G13: =Datos!C14 -> 1.3 | H13: Observaciones
A14: Categoría 8º | B14: en _________ | C14: =Datos!D67 -> 0 | D14: m² a razón de | E14: =Datos!L67 -> 0 | F14: $ / m² = | G14: =Datos!R67 -> 0
A15: Categoría 8º | B15: en _________ | C15: =Datos!D68 -> 0 | D15: m² a razón de | E15: =Datos!L68 -> 0 | F15: $ / m² = | G15: =Datos!R68 -> 0
A16: Categoría 8º | B16: en _________ | C16: =Datos!D69 -> 0 | D16: m² a razón de | E16: =Datos!L69 -> 0 | F16: $ / m² = | G16: =Datos!R69 -> 0
A17: Categoría 8º | B17: en _________ | C17: =Datos!D70 -> 0 | D17: m² a razón de | E17: =Datos!L70 -> 0 | F17: $ / m² = | G17: =Datos!R70 -> 0
A18: Trabajos Faltantes | B18: =IF(Datos!D71="no","NO",100%-'Acta Est. Obra'!F48) -> NO | C18: =Datos!E71 -> 0 | D18: =Datos!G71 -> m² a razón calc. | E18: =Datos!J71 -> 0 | F18: $ / m² = | G18: =Datos!R71 -> 0
A19: Categoría 8º | C19: Computo y Presupuesto | E19: =Datos!L72 -> 0 | G19: =E19 -> 0
F20: TOTAL | G20: =SUM(G14:G19) -> 0
A21: 2) Según Título VIII, Art. 19º, Tabla XXI - Medición de Obra | E21: =IF(Datos!D71="SI","HONORARIO CALCULADO DE ACUERDO AL % DE OBRA EJECUTADA","") -> 
A22: Inciso a en | B22: =Datos!D78 -> 0 | C22: m² a razón de | D22: =Datos!L78 -> 0 | E22: $ / m² = | G22: =Datos!R78 -> 0 | H22: Con Antecedentes Municip.
A23: Inciso a en | B23: =Datos!D79 -> 0 | C23: m² a razón de | D23: =Datos!L79 -> 0 | E23: $ / m² = | G23: =Datos!R79 -> 0 | H23: Con Antecedentes Municip.
A24: Inciso a en | B24: =Datos!D80 -> 0 | C24: m² a razón de | D24: =Datos!L80 -> 0 | E24: $ / m² = | G24: =Datos!R80 -> 0 | H24: Con Antecedentes Municip.
A25: Inciso a en | B25: =Datos!D81 -> 0 | C25: m² a razón de | D25: =Datos!L81 -> 0 | E25: =IF(Datos!D71="SI","$ / m² x","$ / m² =") -> $ / m² = | F25: =IF(Datos!D71="SI",'Acta Est. Obra'!F48,"") ->  | G25: =IF(Datos!D71="SI",'Acta Est. Obra'!F48*Anexa!B25*Anexa!D25,B25*D25) -> 0 | H25: Sin Antecedentes Municip.
A26: Inciso a en | B26: =Datos!D82 -> 0 | C26: m² a razón de | D26: =Datos!L82 -> 0 | E26: =IF(Datos!D71="SI","$ / m² x","$ / m² =") -> $ / m² = | F26: =IF(Datos!D71="SI",'Acta Est. Obra'!F48,"") ->  | G26: =IF(Datos!D71="SI",'Acta Est. Obra'!F48*Anexa!B26*Anexa!D26,B26*D26) -> 0 | H26: Sin Antecedentes Municip.
A27: Inciso a en | B27: =Datos!D83 -> 0 | C27: m² a razón de | D27: =Datos!L83 -> 0 | E27: =IF(Datos!D71="SI","$ / m² x","$ / m² =") -> $ / m² = | F27: =IF(Datos!D71="SI",'Acta Est. Obra'!F48,"") ->  | G27: =IF(Datos!D71="SI",F27*B27*D27,B27*D27) -> 0 | H27: Sin Antecedentes Municip.
A28: Inciso a en | B28: =Datos!D84 -> 0 | C28: m² a razón de | D28: =Datos!L84 -> 0 | E28: =IF(Datos!D71="SI","$ / m² x","$ / m² =") -> $ / m² = | F28: =IF(Datos!D71="SI",'Acta Est. Obra'!F48,"") ->  | G28: =IF(Datos!D71="SI",F28*B28*D28,B28*D28) -> 0 | H28: Sin Antecedentes Municip.
A29: Inciso a | C29: Computo y Presupuesto | E29: =Datos!L85 -> 0 | G29: =Datos!R85 -> 0 | H29: Sin Antecedentes Municip.
F30: TOTAL (b2) | G30: =SUM(G22:G29) -> 0
A31: Determinación del Honorario por
A32: 1) Proyecto y Dirección de Obra
A33: TOTAL | B33: =Datos!R73 -> 0
A34: Hasta | D34: =Datos!D74 -> 0 | E34: =Datos!L74 -> 0
A35: el | B35: =Datos!D75 -> 0.085 | C35: s/ siguientes. | D35: =Datos!L75 -> 0 | E35: =Datos!R75 -> 0
D36: TOTAL (c1) | E36: =Datos!L73 -> 0
A38: Determinación del Honorario por
A39: 2) Medición de Obra
A40: TOTAL | B40: =Datos!R86 -> 0
A41: Hasta ____________________________ | D41: =Datos!D87 -> 0 | E41: =Datos!L87 -> 0
A42: el | B42: =Datos!D88 -> 0.0125 | C42: s/ siguientes. | D42: =Datos!L88 -> 0 | E42: =Datos!R88 -> 0
C43: TOTAL (c2) | D43: =Datos!G86 -> Mínimo | E43: =Datos!L86 -> 0
A45: Otras labores (detallar) | C45: Demolición
A46: =Datos!D96 -> 0 | B46: m² a razón de | C46: =Datos!L96 -> 0 | D46: $ / m² = | E46: =Datos!R97 -> 0
A47: =Datos!E100 -> 0.085 | B47: =Datos!E101 -> 0.3 | C47: =Datos!E102 -> 0.16 | D47: (c3) | E47: =Datos!R100 -> 0
B48: Dirección Ejecutiva | D48: =Datos!E103 -> Si | E48: =Datos!R101 -> 0
D49: TOTAL | E49: =Datos!R102 -> 0
A51: Otras labores (detallar) | C51: Representación Técnica
A53: TOTAL | B53: =Datos!D107 -> 0
A54: Hasta ____________________________ | D54: =Datos!D109 -> 0 | E54: =Datos!L109 -> 0
A55: el | B55: =Datos!D110 -> 0.05 | C55: s/ siguientes. | D55: =Datos!L110 -> 0 | E55: =Datos!R110 -> 0
D56: TOTAL (c4) | E56: =Datos!R111 -> 0
A58: Descomposición del Honorario
A59: Proyecto | B59: =Datos!K62 -> 0 | C59: de | D59: =Datos!L73 -> 0 | E59: =Datos!H114 -> 0
B60: Medición (c2) | D60: =Datos!G86 -> Mínimo | E60: =Datos!H115 -> 0
B61: Proy. Demolic. | C61: =Datos!F116 -> 0 | E61: =Datos!H116 -> 0
A62: Dirección | B62: =Datos!K63 -> 0 | C62: de | D62: =Datos!L73 -> 0 | E62: =Datos!H118 -> 0
B63: Suplemento por | C63: =IF( Datos!K64=0%,"Otro Prof. asume la Construcción",IF(Datos!K64<=20%,"Estudio de Proyecto",IF(Datos!K64<=45%,"Contratos Separados",IF(Datos!K64>=75%,"Direccion Ejecutiva",IF(Datos!K64=60%,IF(Datos!K63=40%,"Contratos Separados","Direccion Ejecutiva")))))) -> Otro Prof. asume la Construcción
A64: =Datos!K64 -> 0 | B64: de | C64: =Datos!L73 -> 0 | E64: =Datos!H120 -> 0 | F64: =Datos!K18 -> 0
B65: Direcc.Demolic. | C65: =Datos!K63 -> 0 | E65: =Datos!H119 -> 0 | F65: MAT C.T.P.B.A. | G65: =Datos!K26 -> 0
B66: Suplem Demol. | C66: =IF( Datos!K64=0%,"Otro Prof. asume la Construcción",IF(Datos!K64<=20%,"Estudio de Proyecto",IF(Datos!K64<=45%,"Contratos Separados",IF(Datos!K64>=75%,"Direccion Ejecutiva",IF(Datos!K64=60%,IF(Datos!K63=40%,"Contratos Separados","Direccion Ejecutiva")))))) -> Otro Prof. asume la Construcción | E66: =Datos!H121 -> 0
A67: Informe Técnico | E67: =Datos!H122 -> 0
C68: TOTAL | D68: =Datos!P125 -> Mínimo | E68: =E59+E60+E61+E62+E64+E65+E66+E67 -> 0 | F68: Firma y sello asesor técnico
C69: Honorario convenido | E69: =Datos!H129 -> 0 | F69: (H0) | G69: =Datos!T131 -> 0
A70: Cuota de Ejercicio Profesional para el Colegio de Técnicos de la Provincia de Buenos Aires
A71: Sucursal banco | C71: fecha | D71: nº de boleta | E71: monto depósito
A72: =Datos!K158 -> MINIMO 748 | C72: =Datos!K156 -> 0 | D72: =Datos!K157 -> 0 | E72: =Datos!K159 -> 374
A74: Aporte para la Caja de Previsión Social para Prof. de la Ingeniería de la Prov. de Bs As | G74: AFILIADO Nº | H74: =Datos!K27 -> 0
A75: Sucursal banco | C75: fecha | D75: nº de boleta | E75: Monto depósito | G75: Porcentaje Liquidado
A76: =Datos!K142 -> 0 | C76: =Datos!K143 -> 0 | D76: =Datos!K144 -> 0 | E76: =Datos!K145 -> 0 | G76: =Datos!K145/Datos!G145 -> 
A77: =Datos!K146 -> 0 | C77: =Datos!K147 -> 0 | D77: =Datos!K148 -> 0 | E77: =Datos!K149 -> 0 | G77: =Datos!K149/Datos!G145 -> 

Sheet Cont 9 art
A6: En la ciudad de | E6: =Datos!K37 -> 0 | K6: el día | M6: =Datos!K38 -> 0 | R6: =Datos!K39 -> 0 | U6: del mes de | X6: =Datos!K40 -> 0 | AB6: del año
A7: =Datos!K41 -> 0 | G7: =Datos!K42 -> 0 | I7: ,entre el señor | M7: =Datos!K29 -> 0 | AA7: DNI | AB7: Nº
A8: =Datos!K30 -> 0 | D8: con domicilio real en la calle | K8: =Datos!K32 -> 0 | U8: Nº | V8: =Datos!K33 -> 0 | AB8: ,de la localidad de
A9: =Datos!K34 -> 0 | H9: , Partido de | K9: =Datos!K35 -> 0 | AB9: designado en adelante el COMITENTE, y
A10: =Datos!K18 -> 0 | J10: DNI N° | L10: =Datos!K19 -> 0 | P10: con domicilio real en la calle | X10: =Datos!K20 -> 0
A11: =Datos!K21 -> 0 | C11: ,de la localidad de | H11: =Datos!K22 -> 0 | N11: , Partido de | Q11: =Datos!K23 -> 0 | AB11: con título profesional de
A12: =Datos!K24 -> 0 | H12: Matrícula del Colegio de Técnicos de la Provincia de Buenos Aires Nº | Z12: =Datos!K26 -> 0
A13: designado en adelante como el PROFESIONAL, se conviene en celebrar el presente contrato.
B15: Artículo 1º: El comitente encomienda al profesional | O15: =Datos!K55 -> 0
A16: de la obra sita en la calle | H16: =Datos!K45 -> 0 | M16: Nº | N16: =Datos!K46 -> 0 | P16: de la localidad de | U16: =Datos!K47 -> 0 | AA16: Partido de
A17: =Datos!K48 -> 0 | E17: Circ. | G17: =Datos!K49 -> 0 | I17: Secc | K17: =Datos!K50 -> 0 | M17: Manz | O17: =Datos!K51 -> 0 | Q17: Parc | S17: =Datos!K52 -> 0 | U17: U.F. | W17: =Datos!K53 -> 0
B19: Artículo 2º: Por las tareas detalladas en el artículo anterior, el comitente abonará al profesional los honorarios
A20: de común acuerdo convenidos, que ascienden a la suma de:
A21: Pesos | C21: =Datos!F130 -> CERO CON 00/100 | Y21: =Datos!R129 -> 0
A22: conforme a las normas legales en la materia vigentes en la jurisdicción de la Pcia. de Bs. As. y el Código Civil.
B24: Artículo 3º: El Comitente abonará al profesional los honorarios pactados en la siguiente forma:
A25: Pesos: | C25: =Datos!F136 -> CERO CON 00/100 | W25: =IF(Datos!K59="Reajuste",Datos!R129,Datos!H134) -> 0 | AB25: en este
A26: acto, en concepto de | F26: =Datos!H137 -> 0 | AB26: y el saldo en concepto de
A27: =Datos!H139 -> 0 | M27: lo hará conforme al avance de los trabajos.
B30: Artículo 4º: Se establece como plazo de vigencia del | S30: Visado Provisorio
A31: presente contrato : | F31: =Datos!K57 -> 0 | K31: =Datos!K58 -> 0 | N31: meses | O31: a partir de
A32: la firma del presente, vencido el cual deberán ratificarse las condi-
A33: ciones pactadas. En caso de silencio se considerará que el profesional
A34: queda automáticamente liberado de toda responsabilidad con relación
A35: a la obra cuyos datos figuran en el presente.
B37: Artículo 5º: Con cada percepción de honorarios , el profesional
A38: efectuará los aportes previsionales a que obliga la Ley 12490 art. 26
A39: inciso b.
B41: Artículo 6º: La falta de pago de cualquiera de las sumas establecidas, producirá la Mora de Pleno Derecho,
A42: pudiendo el Profesional optar por cobrar un interés punitorio sobre el atraso, o dar por terminados los plazos
A43: establecidos y cobrar el saldo total de lo que adeudare, o rescindir el presente contrato quedando las sumas
A44: abonadas en concepto de indemnización.
B46: Artículo 7º: Los gastos extraordinarios serán a exclusi- | S46: Visado Definitivo
A47: vo costo y cargo del Comitente, como así también el pago de los
A48: Derechos de Construcción o sellados ante el Municipio respecti-
A49: vo, por las obras que se ejecutarán.
B51: Artículo 8º: Para todos los efectos legales emergentes del
A52: presente contrato las partes constituyen domicilio legal en los
A53: arriba indicados y se someten a la jurisdicción de los Tribunales
A54: Ordinarios de | E54: =Datos!K60 -> 0 | M54: con renun-
A55: ciación expresa a cualquier otro fuero.-
B57: Artículo 9º: De conformidad y para que conste, se firman cinco (5) ejemplares del mismo tenor y a un solo
A58: efecto con carácter de: | G58: =Datos!K59 -> 0
I65: Firma del Comitente | U65: Firma del Profesional
E66: =Datos!K29 -> 0 | Q66: =Datos!K18 -> 0
G67: CUIL | J67: =Datos!K31 -> 0 | S67: CUIT | V67: =Datos!K25 -> 0

Sheet Cont 11 art
A6: En la ciudad de | F6: =Datos!K37 -> 0 | K6: el día | M6: =Datos!K38 -> 0 | S6: =Datos!K39 -> 0 | U6: del mes de | X6: =Datos!K40 -> 0 | AB6: del año
A7: =Datos!K41 -> 0 | G7: =Datos!K42 -> 0 | I7: ,entre el señor | M7: =Datos!K29 -> 0 | AA7: DNI
A8: =Datos!K30 -> 0 | D8: con domicilio real en la calle | K8: =Datos!K32 -> 0 | U8: Nº | V8: =Datos!K33 -> 0 | AB8: ,de la localidad de
A9: =Datos!K34 -> 0 | H9: , Partido de | K9: =Datos!K35 -> 0 | AB9: designado en adelante el COMITENTE, y
A10: =Datos!K18 -> 0 | K10: DNI Nº | M10: =Datos!K19 -> 0 | Q10: con domicilio real en la calle | X10: =Datos!K20 -> 0
A11: =Datos!K21 -> 0 | C11: ,de la localidad de | H11: =Datos!K22 -> 0 | N11: , Partido de | Q11: =Datos!K23 -> 0 | AB11: con título profesional de
A12: =Datos!K24 -> 0 | G12: Matrícula del Colegio de Técnicos de la Provincia de Buenos Aires Nº | X12: =Datos!K26 -> 0 | AB12: designado
A13: en adelante como el PROFESIONAL, se conviene en celebrar el presente contrato.
B14: Artículo 1º: El comitente encomienda al profesional | O14: =Datos!K55 -> 0
A15: de la obra sita en la calle | H15: =Datos!K45 -> 0 | N15: Nº | O15: =Datos!K46 -> 0 | R15: de la localidad de: | W15: =Datos!K47 -> 0
A16: Partido de | E16: =Datos!K48 -> 0
A17: Circ. | C17: =Datos!K49 -> 0 | E17: Secc | G17: =Datos!K50 -> 0 | I17: Manz | K17: =Datos!K51 -> 0 | N17: Parc | P17: =Datos!K52 -> 0 | R17: U.F. | T17: =Datos!K53 -> 0
B18: Artículo 2º: Por las tareas detalladas en el artículo ante- | Q18: Visado Provisorio
A19: rior, el comitente abonará al profesional los honorarios de co-
A20: mún acuerdo convenidos, que ascienden a la suma de pesos:
A21: =Datos!F130 -> CERO CON 00/100
A22: =Datos!R129 -> 0 | O22: conforme a las normas legales en la materia
A23: vigentes en la jurisdicción de la Provincia de Buenos Aires y
A24: el Código Civil.
B25: Artículo 3º: El Sr. | H25: =Datos!K29 -> 0
A26: como comitente, toma a su exclusivo cargo la ejecución de la
A27: obra como Empresario. | H27: Sistema de Ejecución de Obra por:
A28: =Anexa!D12 -> OTRO PROFESIONAL ASUME LA CONSTRUCCION | K28: =Anexa!G12 -> .
B29: Artículo 4º: El Comitente abonará al profesional los ho-
A30: norarios pactados en la siguiente forma:
A31: Pesos | C31: =Datos!F136 -> CERO CON 00/100 | T31: =IF(Datos!K59="Reajuste",Datos!R129,Datos!H134) -> 0 | Y31: en este acto,
A32: en concepto de | F32: =Datos!H137 -> 0 | S32: y el saldo, en concepto de:
A33: =Datos!H139 -> 0 | K33: lo hará conforme al avance de la misma.
B34: Artículo 5º: Se establece como plazo de vigencia del presente contrato : | T34: =Datos!K57 -> 0 | Y34: =Datos!K58 -> 0
A35: meses, vencido el cual deberán ratificarse las condiciones pactadas. De no hacerse lo expresado, dentro de los
A36: quince (15) días posteriores al vencimiento, el Profesional queda desvinculado de sus obligaciones
A37: profesionales sin necesidad de comunicación alguna al comitente.
B38: Artículo 6º: Con cada percepción de honorarios , el PROFESIONAL efectuará los aportes previsionales a
A39: que obliga la Ley 12490 art. 26 inc. b.
B40: Artículo 7º: La falta de pago de cualquiera de las sumas establecidas, producirá la Mora de Pleno Derecho,
A41: pudiendo el Profesional optar por cobrar un interés punitorio
A42: sobre el atraso, o dar por terminados los plazos establecidos y cobrar | Q42: Visado Definitivo
A43: el saldo total de lo que se le adeudare, o rescindir el presente
A44: contrato quedando los sumas abonadas en concepto de
A45: indemnización.
B46: Artículo 8º: En virtud de lo establecido en el artículo 3º
A47: del presente, el COMITENTE asume expresamente bajo su
A48: responsabilidad, los incisos que a continuación se expresan:
A49: a) La contratación de todo el personal, el pago de sus remu-
A50: neraciones, aportes legales (obra social, previsional, sindi-
A51: cal, etc.) indemnizaciones y cualquier otro crédito laboral,
A52: como así también, toda responsabilidad laboral, civil y/o
A53: penal que pudiera derivar de dicha relación, conforme lo
A54: determinan las normativas vigentes;
A55: b) La contratación de los seguros de riesgo por accidente de trabajo, de vida y cualquier otro que exigen las normas
A56: que rigen la actividad.
A57: c) El cumplimiento de las normas sobre Seguridad e Higiene en el Trabajo y Medicina Laboral.
A58: d) La compra de la totalidad de materiales que demande la construcción de la obra.
B59: Artículo 9º: Los gastos extraordinarios serán a exclusivo costo y cargo del Comitente, como así también el
A60: pago de los Derechos de Construcción o sellados ante el Municipio respectivo, por las obras que se ejecutarán.
B61: Artículo 10º:Para todos los efectos legales emergentes del presente contrato las partes constituyen domicilio
A62: legal en los arriba indicados y se someten a la jurisdicción de los Tribunales Ordinarios de | X62: =Datos!K60 -> 0
A63: con renunciación expresa a cualquier otro fuero.-
B64: Artículo 11º: De conformidad y para que conste, se firman cinco (5) ejemplares del mismo tenor y a un solo
A65: efecto con el carácter de: | H65: =Datos!K59 -> 0
I70: Firma del Comitente | U70: Firma del Profesional
F71: =Datos!K29 -> 0 | R71: =Datos!K18 -> 0
G72: CUIL | I72: =Datos!K31 -> 0 | S72: CUIT | V72: =Datos!K25 -> 0

Sheet Cont-Transcrip.Corrida
A6: =Cálculos!A8&" "&Cálculos!B8&""&Cálculos!C8&" "&Cálculos!D8&" "&Cálculos!E8&" "&Cálculos!F8&" "&Cálculos!G8&" "&Cálculos!H8&" "&Cálculos!I8&" "&Cálculos!J8&" "&Cálculos!A9&" "&Cálculos!B9&""&Cálculos!C9&" "&Cálculos!D9&""&Cálculos!E9&" "&Cálculos!F9&" "&Cálculos!G9&" "&Cálculos!H9&" "&Cálculos!I9&" "&Cálculos!J9&" "&Cálculos!A10&" "&Cálculos!B10&" "&Cálculos!C10&""&Cálculos!D10&" "&Cálculos!E10&""&Cálculos!F10&" "&Cálculos!G10&""&Cálculos!H10&" "&Cálculos!I10&""&Cálculos!J10&" "&Cálculos!A11&" "&Cálculos!B11&" "&Cálculos!C11&" "&Cálculos!D11&""&Cálculos!E11&" "&Cálculos!F11&""&Cálculos!G11&" "&Cálculos!H11&""&Cálculos!I11&" "&Cálculos!J11&""&Cálculos!A12&" "&Cálculos!B12&" "&Cálculos!C12&" "&Cálculos!D12&""&Cálculos!E12&" "&Cálculos!F12&""&Cálculos!G12&" "&Cálculos!H12&""&Cálculos!I12&" "&Cálculos!J12&"" -> En la ciudad de 0, el día 0 0 de 0 del año 0 0 entre el señor 0, DNI Nº 0, con domicilio real en 0 0 de la localidad de 0, Partido de 0, llamado en adelante el COMITENTE, y 0, DNI Nº 0, con domicilio real en 0 0 de la localidad de 0, Partido de 0, Con Título Profesional de 0, Matrícula del Colegio de Técnicos de la Provincia de Buenos Aires Nº 0, llamado en adelante el PROFESIONAL, se conviene en celebrar el siguiente contrato de Locación de Servicios.
A7: =Cálculos!A13&" "&Cálculos!B13&" "&Cálculos!C13&" "&Cálculos!D13&" "&Cálculos!E13&" "&Cálculos!F13&" "&Cálculos!G13&" "&Cálculos!H13&" "&Cálculos!I13&" "&Cálculos!J13&" "&Cálculos!K13&" "&Cálculos!A14&" "&Cálculos!B14&" "&Cálculos!C14&" "&Cálculos!D14&" "&Cálculos!E14&" "&Cálculos!F14&" "&Cálculos!G14&" "&Cálculos!H14&" "&Cálculos!I14&" "&Cálculos!J14&" "&Cálculos!A15&" "&Cálculos!B15&" "&Cálculos!C15 -> Artículo 1º) El COMITENTE encomienda al PROFESIONAL lo siguiente: 0 , para la obra ubicada en 0 Nº 0 , de la localidad de 0 Partido de 0 ; cuya designación catastral es Circunscripción: 0 Sección: 0 Manzana: 0 Parcela: 0 U.F.: 0 . DESTINO: 0
A8: =Cálculos!A16&" "&Cálculos!C16&" "&Cálculos!B16&""&Cálculos!D16 -> Artículo 2º) Por las tareas detalladas en el artículo anterior el COMITENTE abonará al PROFESIONAL, los honorarios de común acuerdo convenidos, que ascienden a la suma de pesos: $ 0 CERO CON 00/100. Conforme a las normas legales, vigentes en la jurisdicción de la Provincia de Buenos Aires y el Código Civil.
A9: =Cálculos!A17&" "&Cálculos!B17&" "&Cálculos!C17 -> Artículo 3º) El Sr. 0 , en su carácter de COMITENTE, toma a su exclusivo cargo, la ejecución de la obra como EMPRESARIO.
A10: =Cálculos!D17&" "&Cálculos!E17&" "&Cálculos!F17 -> SISTEMA de EJECUCIÓN de OBRA POR: OTRO PROFESIONAL ASUME LA CONSTRUCCION .
A11: =Cálculos!A18&" "&Cálculos!B18&" "&Cálculos!C18&" "&Cálculos!D18&" "&Cálculos!E18&" "&Cálculos!F18&" "&Cálculos!G18&" "&Cálculos!H18&" "&Cálculos!I18&" "&Cálculos!J18 -> Artículo 4º) El COMITENTE abonará al PROFESIONAL los honorarios pactados en la siguiente forma: $ 0 CERO CON 00/100 en este acto, en concepto de: 0 y el saldo, de $ 0 en concepto de 0
A12: =Cálculos!A19&" "&Cálculos!B19&" "&Cálculos!C19&" "&Cálculos!D19&" "&Cálculos!E19&" "&Cálculos!F19&" "&Cálculos!G19&" "&Cálculos!H19&" "&Cálculos!I19&" "&Cálculos!J19&" "&Cálculos!K19&"" -> Artículo 5º) Se establece el plazo de vigencia del presente contrato en: 0 meses 0 . Vencido el cual, deberán ratificarse las condiciones pactadas. De no hacerse lo expresado, dentro de los quince (15) días posteriores al vencimiento, el PROFESIONAL queda liberado de sus obligaciones, sin necesidad de comunicación alguna al COMITENTE.
A13: =Cálculos!A20 -> Artículo 6º) Con cada percepción de honorarios, el PROFESIONAL, efectuará los aportes previsionales que obliga el Art. 26 inc. b) de la Ley 12490.
A14: =Cálculos!A21 -> Artículo 7º) La falta de pago de cualquiera de las sumas establecidas, producirá la Mora de Pleno Derecho, pudiendo el Profesional optar por cobrar un interés punitorio sobre el atraso, o dar por terminados los plazos establecidos y cobrar el saldo total de lo que se le adeudare, o rescindir el presente contrato quedando los sumas abonadas en concepto de indemnización.
A15: =Cálculos!A22 -> Artículo 8º) En virtud de lo establecido en el artículo 3º del presente, el COMITENTE asume expresamente bajo su costa y responsabilidad, los incisos que a continuación se indican:
A16: =Cálculos!A23 -> a) La contratación de todo el personal, el pago de sus remuneraciones, aportes legales (obra social, previsional, sindical, etc.) indemnizaciones y cualquier otro crédito laboral, como así también, toda responsabilidad laboral, civil y/o penal que pudiera derivar de dicha relación, conforme lo determinan las normativas vigentes;
A17: =Cálculos!A24 -> b) La contratación de los seguros de riesgo por accidente de trabajo, de vida y cualquier otro que exigen las normas que rigen la actividad.
A18: =Cálculos!A25 -> c) El cumplimiento de las normas sobre Seguridad e Higiene en el Trabajo y Medicina Laboral.
A19: =Cálculos!A27 -> Artículo 9º) Los gastos extraordinarios serán a exclusivo costo y cargo del Comitente, como así también el pago de los Derechos de Construcción o sellados ante el Municipio respectivo, por las obras que se ejecutarán.
A20: =Cálculos!A28&" "&Cálculos!B28&" "&Cálculos!C28&"" -> Artículo 10º) Para todos los efectos legales emergentes del presente contrato las partes constituyen domicilio legal en los arriba indicados y se someten a la jurisdicción de los Tribunales Ordinarios de 0 renunciando a cualquier otro fuero o jurisdicción.-
A21: =Cálculos!A29&" "&Cálculos!B29 -> Artículo 11º) De conformidad y para que conste, se firman cinco (5) ejemplares del mismo tenor y a un solo efecto con el carácter de: 0
A26: =Cálculos!A30&" "&Cálculos!B30 -> Firma del Comitente Firma del Profesional
A27: =Cálculos!A31&" "&Cálculos!B31 -> 0 0
A28: =Cálculos!A32&" "&Cálculos!B32&" "&Cálculos!C32&" "&Cálculos!D32 -> CUIL 0 CUIT 0
A30: VISADO

Sheet Art. 29
A1: CAJA DE PREVISION SOCIAL PARA AGRIMENSORES, ARQUITECTOS, INGENIEROS
A2: Y TECNICOS DE LA PROVINCIA DE BUENOS AIRES
A4: CONTRIBUCIÓN OBLIGATORIA (Art 29 Ley 12490)
D6: * CONSTRUCCIONES CIVILES *
A8: PLANILLA ANEXA CORRESPONDIENTE AL CONTRATO CELEBRADO EL : | J8: =Datos!K38 -> 0 | L8: de
A9: =Datos!K40 -> 0 | D9: de | E9: =Datos!K41 -> 0
A10: Propietario ó Beneficiario: | E10: =Datos!K29 -> 0 | I10: Profesional: | J10: =Datos!K18 -> 0
A11: para la obra sita en la calle: | E11: =Datos!K45 -> 0 | G11: =Datos!K46 -> 0 | I11: Localidad de: | J11: =Datos!K47 -> 0
A13: Estimación del valor de obra: | E13: =IF(Datos!D71="SI"," SEGÚN EL PORCENTAJE DE OBRA EJECUTADA SIN ANTECEDENTE MUNICIPAL","") -> 
A15: Según art.º 8º del Título VIII (Decreto 6964/65): | I15: =IF(Datos!D71="SI","% EJECUTADO","") -> 
A16: Tipo/categoría 8º | D16: superficie | E16: =Datos!D81 -> 0 | F16: m² a razón de $/m² | H16: =Datos!L81 -> 0 | I16: =IF(Datos!D71="SI","X","") ->  | J16: =IF(Datos!D71="SI",'Acta Est. Obra'!F48,"") ->  | K16: = $ | L16: =IF(Datos!D71="SI",E16*H16*'Acta Est. Obra'!F48,E16*H16) -> 0
A17: Tipo/categoría 8º | D17: superficie | E17: =Datos!D82 -> 0 | F17: m² a razón de $/m² | H17: =Datos!L82 -> 0 | I17: =IF(Datos!D71="SI","X","") ->  | J17: =IF(Datos!D71="SI",'Acta Est. Obra'!F48,"") ->  | K17: = $ | L17: =IF(Datos!D71="SI",E17*H17*'Acta Est. Obra'!F48,E17*H17) -> 0
A18: Tipo/categoría 8º | D18: superficie | E18: =Datos!D83 -> 0 | F18: m² a razón de $/m² | H18: =Datos!L83 -> 0 | I18: =IF(Datos!D71="SI","X","") ->  | J18: =IF(Datos!D71="SI",'Acta Est. Obra'!F48,"") ->  | K18: = $ | L18: =IF(Datos!D71="SI",E18*H18*'Acta Est. Obra'!F48,E18*H18) -> 0
A19: Tipo/categoría 8º | D19: superficie | E19: =Datos!D84 -> 0 | F19: m² a razón de $/m² | H19: =Datos!L84 -> 0 | I19: =IF(Datos!D71="SI","X","") ->  | J19: =IF(Datos!D71="SI",'Acta Est. Obra'!F48,"") ->  | K19: = $ | L19: =IF(Datos!D71="SI",E19*H19*'Acta Est. Obra'!F48,E19*H19) -> 0
A20: Tipo/categoría 8º | I20: Computo y Presupuesto | J20: =Datos!L85 -> 0 | K20: = $ | L20: =Datos!R85 -> 0
K22: TOTAL (1): $ | L22: =SUM(L16:L20) -> 0
A25: DETERMINACIÓN DE LA CONTRIBUCIÓN:
A27: Proyecto y Dirección: Categoría 8º s/ tabla XVII (Decreto 6964/65) | K27: TOTAL (1): $ | L27: =L22 -> 0
C29: hasta | E29: $ | F29: =Datos!D91 -> 0 | K29: $ | L29: =Datos!L91 -> 0
B30: =Datos!D92 -> 0.085 | C30: sobre los siguientes | E30: $ | F30: =Datos!L92 -> 0 | K30: $ | L30: =Datos!R92 -> 0
K32: TOTAL (c1): $ | L32: =SUM(L29,L30) -> 0
K35: 10 % de c1 $ | L35: =ROUND(L32*10%,1) -> 0
C36: Son Pesos: | D36: =Datos!K154 -> CERO CON 00/100
A38: Contribución a cargo del Propietario ó Beneficiario | G38: fecha: | I38: Sucursal | K38: Importe
A39: Contribución Art.º 29 Ley 12490 | E39: Nº de Boleta: | F39: =Datos!K152 -> 0 | G39: =Datos!K151 -> 0 | I39: =Datos!K150 -> 0 | K39: =Datos!K153 -> 0
A40: Contribución Art.º 29 Ley 12490 | E40: Nº de Boleta | I40: DASDASD | K40: =IF(K39>=L35,".",L35-K39) -> .
D46: FIRMA del COMITENTE | I46: FIRMA PROFESIONAL
C47: CUIL | D47: =Datos!K31 -> 0 | I47: MAT. CTPBA N°: | K47: =Datos!K26 -> 0
I48: CUIT | J48: =Datos!K25 -> 0

Sheet Reaj.
J5: =IF(Datos!K59="Reajuste","CONTRATO DE REAJUSTE",".") -> .
A6: En la ciudad de | F6: =Datos!K37 -> 0 | K6: el día | M6: =Datos!K38 -> 0 | S6: =Datos!K39 -> 0 | U6: del mes de | X6: =Datos!K40 -> 0 | AB6: del año
A7: =Datos!K41 -> 0 | G7: =Datos!K42 -> 0 | I7: ,entre el señor | M7: =Datos!K29 -> 0 | AA7: DNI
A8: =Datos!K30 -> 0 | D8: con domicilio real en la calle | K8: =Datos!K32 -> 0 | U8: Nº | V8: =Datos!K33 -> 0 | AB8: ,de la localidad de
A9: =Datos!K34 -> 0 | H9: , Partido de | K9: =Datos!K35 -> 0 | AB9: designado en adelante el COMITENTE, y
A10: =Datos!K18 -> 0 | K10: DNI Nº | N10: =Datos!K19 -> 0 | Q10: con domicilio real en la calle | X10: =Datos!K20 -> 0
A11: =Datos!K21 -> 0 | C11: ,de la localidad de | H11: =Datos!K22 -> 0 | N11: , Partido de | Q11: =Datos!K23 -> 0 | AB11: con título profesional de
A12: =Datos!K24 -> 0 | G12: Matrícula del Colegio de Técnicos de la Provincia de Buenos Aires Nº | X12: =Datos!K26 -> 0 | AB12: designado
A13: en adelante como el PROFESIONAL, se conviene en celebrar el presente contrato.
B14: Artículo 1º: El comitente encomienda al profesional | O14: =Datos!K55 -> 0
A15: de la obra sita en la calle | H15: =Datos!K45 -> 0 | M15: Nº | P15: =Datos!K46 -> 0 | R15: de la localidad de: | W15: =Datos!K47 -> 0
A16: Partido de | E16: =Datos!K48 -> 0
A17: Circ. | C17: =Datos!K49 -> 0 | E17: Secc | G17: =Datos!K50 -> 0 | I17: Manz | K17: =Datos!K51 -> 0 | N17: Parc | P17: =Datos!K52 -> 0 | R17: U.F. | T17: =Datos!K53 -> 0
B18: Artículo 2º: Por las tareas detalladas en el artículo ante- | Q18: Visado Provisorio
A19: rior, el comitente abonará al profesional los honorarios de
A20: REAJUSTE convenidos, que ascienden a la suma de pesos:
A21: =Datos!F130 -> CERO CON 00/100
A22: =Datos!R129 -> 0 | O22: conforme a las normas legales en la materia
A23: vigentes en la jurisdicción de la Provincia de Buenos Aires y
A24: el Código Civil.
B25: Artículo 3º: El Sr. | H25: =Datos!K29 -> 0
A26: como comitente, toma a su exclusivo cargo la ejecución de la
A27: obra como Empresario. | H27: Sistema de Ejecución de Obra por:
A28: =Anexa!D12 -> OTRO PROFESIONAL ASUME LA CONSTRUCCION | K28: =Anexa!G12 -> .
B29: Artículo 4º: El Comitente abonará al profesional los ho-
A30: norarios pactados en el presente contrato de REAJUSTE al contado.
A31: Pesos | C31: =Datos!F136 -> CERO CON 00/100 | T31: =Datos!H134 -> 0 | Y31: en este acto,
A32: en concepto de Reajuste de Honorarios, quedando vigentes todas las cláusulas pactadas en el Contrato
A33: Originario firmado por las partes oportunamente.
B34: Artículo 5º: Se establece como plazo de vigencia del presente contrato : | T34: =Datos!K57 -> 0 | Y34: =Datos!K58 -> 0
A35: meses, vencido el cual deberán ratificarse las condiciones pactadas. De no hacerse lo expresado, dentro de los
A36: quince (15) días posteriores al vencimiento, el Profesional queda desvinculado de sus obligaciones
A37: profesionales sin necesidad de comunicación alguna al comitente.
B38: Artículo 6º: Con cada percepción de honorarios , el PROFESIONAL efectuará los aportes previsionales a
A39: que obliga la Ley 12490 art. 26 inc. b.
B40: Artículo 7º: La falta de pago de cualquiera de las sumas establecidas, producirá la Mora de Pleno Derecho,
A41: pudiendo el Profesional optar por cobrar un interés punitorio
A42: sobre el atraso, o dar por terminados los plazos establecidos y cobrar | Q42: Visado Definitivo
A43: el saldo total de lo que se le adeudare, o rescindir el presente
A44: contrato quedando los sumas abonadas en concepto de
A45: indemnización.
B46: Artículo 8º: En virtud de lo establecido en el artículo 3º
A47: del presente, el COMITENTE asume expresamente bajo su
A48: responsabilidad, los incisos que a continuación se expresan:
A49: a) La contratación de todo el personal, el pago de sus remu-
A50: neraciones, aportes legales (obra social, previsional, sindi-
A51: cal, etc.) indemnizaciones y cualquier otro crédito laboral,
A52: como así también, toda responsabilidad laboral, civil y/o
A53: penal que pudiera derivar de dicha relación, conforme lo
A54: determinan las normativas vigentes;
A55: b) La contratación de los seguros de riesgo por accidente de trabajo, de vida y cualquier otro que exijan las normas
A56: que rigen la actividad.
A57: c) El cumplimiento de las normas sobre Seguridad e Higiene en el Trabajo y Medicina Laboral.
A58: d) La compra de la totalidad de materiales que demande la construcción de la obra.
B59: Artículo 9º: Los gastos extraordinarios serán a exclusivo costo y cargo del Comitente, como así también el
A60: pago de los Derechos de Construcción o sellados ante el Municipio respectivo, por las obras que se ejecutarán.
B61: Artículo 10º:Para todos los efectos legales emergentes del presente contrato las partes constituyen domicilio
A62: legal en los arriba indicados y se someten a la jurisdicción de los Tribunales Ordinarios de | X62: =Datos!K60 -> 0
A63: con renunciación expresa a cualquier otro fuero.-
B64: Artículo 11º: De conformidad y para que conste, se firman cinco (5) ejemplares del mismo tenor y a un solo
A65: efecto con el carácter de: | H65: =Datos!K59 -> 0
I70: Firma del Comitente | U70: Firma del Profesional
E71: =Datos!K29 -> 0 | R71: =Datos!K18 -> 0
F72: CUIL | I72: =Datos!K31 -> 0 | S72: CUIT | T72: =Datos!K25 -> 0

Sheet Cert. Constructor
B6: PROPIETARIO: | Q6: Fecha Actual
E7: =Datos!K29 -> 0 | N7: Fecha : | Q7: =TODAY() -> 2020-06-26
B8: UBICACIÓN DE LA OBRA:
C9: Calle: | D9: =Datos!K45 -> 0 | G9: N° | H9: =Datos!K46 -> 0 | J9: Localidad: | L9: =Datos!K47 -> 0
C10: Circ.: | D10: =Datos!K49 -> 0 | E10: Sec.: | F10: =Datos!K50 -> 0 | G10: Manz.: | H10: =Datos!K51 -> 0 | I10: Parc.: | J10: =Datos!K52 -> 0 | K10: U.F.: | L10: =Datos!K53 -> 0 | M10: Partido: | N10: =Datos!K48 -> 0
B12: Al Sr. Presidente del Colegio de Técnicos de la Provincia de Buenos Aires:
B14: Quien suscribe el presente, Técnico | N14: con domicilio en la calle
E15: N° | G15: de la localidad de | N15: Partido:
A16: inscripto en el Colegio de Técnicos con la Matrícula: | L16: se dirige al Sr. Presidente a fin de
A17: requerirle, se sirva disponer al otorgamiento del presente Certificado por TAREAS de CONSTRUCCIÓN.
B19: 1) DETERMINACIÓN DEL MONTO DE OBRA NUEVA | I19: FC: | J19: =Anexa!G13 -> 1.3 | M19: U.R.: | N19: =Datos!C15 -> 26000
C20: Categoría 8º | D20: en _________ | F20: =Anexa!C14 -> 0 | H20: m² a razón de | J20: =Anexa!E14 -> 0 | L20: $ / m² = | M20: =Anexa!G14 -> 0
C21: Categoría 8º | D21: en _________ | F21: =Anexa!C15 -> 0 | H21: m² a razón de | J21: =Anexa!E15 -> 0 | L21: $ / m² = | M21: =Anexa!G15 -> 0
C22: Categoría 8º | D22: en _________ | F22: =Anexa!C16 -> 0 | H22: m² a razón de | J22: =Anexa!E16 -> 0 | L22: $ / m² = | M22: =Anexa!G16 -> 0
C23: Categoría 8º | D23: en _________ | F23: =Anexa!C17 -> 0 | H23: m² a razón de | J23: =Anexa!E17 -> 0 | L23: $ / m² = | M23: =Anexa!G17 -> 0
C24: Trabajos Faltantes | E24: =IF(Datos!D71="no","NO",100%-'Acta Est. Obra'!F48) -> NO | F24: =Anexa!C18 -> 0 | H24: =Anexa!D18 -> m² a razón calc. | J24: =Anexa!E18 -> 0 | L24: $ / m² = | M24: =Anexa!G18 -> 0
C25: Categoría 8º | H25: Computo y Presupuesto monto global | M25: =Anexa!G19 -> 0
A26: Demolic. | C26: =IF(E26=30%,"Estado Bueno",IF(E26=45%,"Estado Regular","Estado peligroso")) -> Estado Bueno | E26: =Datos!E101 -> 0.3 | F26: =Anexa!A46 -> 0 | H26: m² a razón de | J26: =Anexa!C46 -> 0 | L26: $ / m² = | M26: =E26*F26*J26 -> 0
L27: TOTAL | M27: =SUM(M20:M26) -> 0
B28: 2) DETERMINACIÓN DEL HONORARIO
B29: hasta | C29: =Datos!AE106 -> 0 | F29: acumulado | J29: =Datos!AF106 -> 0
B30: el | D30: =Datos!AH106 -> 0.017 | F30: s/ siguientes | H30: =Datos!AG106 -> 0 | J30: =ROUNDUP(Datos!AI106,2) -> 0
G31: HONORARIO TOTAL | J31: =SUM(J29:K30) -> 0
E32: =IF(J34<J31,"EL HONORARIO CONVENIDO DEBE SER IGUAL O MAYOR QUE EL HONORARIO TOTAL","") -> 
E33: =IF(J34<Datos!S13,"NO CUMPLE EL MÍNIMO POR CUALQUIER TAREA PROFESIONAL ","") -> 
F34: HONORARIO CONVENIDO | J34: ASDASD
A35: El honorario del presente asciende a pesos: | H35: =Importe!F41 -> 
D42: PROPIETARIO | N42: CONSTRUCTOR
C43: =E7 -> 0 | M43: =H14 -> 0
D44: CUIL | E44: =Datos!K31 -> 0 | N44: CUIT
B46: Cuota de Ejercicio Prof. para el Coleg. de Técnicos de la Prov. de Bs As | L46: Sellado
B47: Sucursal Banco | F47: fecha | H47: nº de boleta | J47: Monto depósito | L47: 0.011 | M47: 0.012 | N47: 0.013
J48: =ROUND(Datos!AC110,2) ->  | L48: =J34*1.1% ->  | M48: =J34*1.2% ->  | N48: =J34*1.3% -> 
B50: Aporte para la Caja de Previsión Social para Prof. de la Ingeniería de la Prov. de Bs As AFILIADO N°
B51: Sucursal Banco | F51: fecha | H51: nº de boleta | J51: Monto depósito
J52: =ROUND(J34*0.1,2) -> 
A54: Me notifico que la presente certificación no me exime de las | L54: VISADO
A55: obligaciones legales (Código Civil Art. 1.646), Impositivas (Ingresos
A56: Brutos, Afip; Ley de sellos) Previsionales ni Sindicales.
A58: El profesional solicitante del presente tiene matrícula al día, no tiene
A59: inhabilitaciones y tiene incumbencia para realizar la tarea encomendada.
A61: La liquidación por tabla desarrollada por la tarea de Constructor y/o
A62: Ejecutor es equivalente al 50 % de la Dirección de dicha obra.

Sheet Importe (hidden)
D3: NUMERO | E3: =Datos!H129 -> 0 | F3: =TRIM(B15) -> CERO CON 00/100 | R3: NUMERO | S3: =Datos!K153 -> 0 | T3: =TRIM(P15) -> CERO CON 00/100
D4: PARTE ENTERA | E4: =INT(E3) -> 0 | R4: PARTE ENTERA | S4: =INT(S3) -> 0
D5: DECIMAL | E5: =IF((E3-E4)=0,"00",ROUND((E3-E4)*100,2)) -> 00 | R5: DECIMAL | S5: =IF((S3-S4)=0,"00",ROUND((S3-S4)*100,2)) -> 00
D6: MONEDA | R6: MONEDA
A8: MILLONES | B8: =INT(E3/1000000) -> 0 | E8: MILES | F8: =INT(MOD(E4/1000,1000)) -> 0 | I8: CENTENAS | J8: =MOD(E4,1000) -> 0 | O8: MILLONES | P8: =INT(S3/1000000) -> 0 | S8: MILES | T8: =INT(MOD(S4/1000,1000)) -> 0 | W8: CENTENAS | X8: =MOD(S4,1000) -> 0
A10: CENTENAS | B10: =B8 -> 0 | C10: =VLOOKUP(B10,$A$18:$B$28,2,1) ->  | E10: CENTENAS | F10: =F8 -> 0 | G10: =VLOOKUP(F10,$A$18:$B$28,2,1) ->  | I10: CENTENAS | J10: =J8 -> 0 | K10: =VLOOKUP(J10,$A$18:$B$28,2,1) ->  | O10: CENTENAS | P10: =P8 -> 0 | Q10: =VLOOKUP(P10,$A$18:$B$28,2,1) ->  | S10: CENTENAS | T10: =T8 -> 0 | U10: =VLOOKUP(T10,$A$18:$B$28,2,1) ->  | W10: CENTENAS | X10: =X8 -> 0 | Y10: =VLOOKUP(X10,$A$18:$B$28,2,1) -> 
A11: DECENAS | B11: =MOD(B8,100) -> 0 | C11: =VLOOKUP(B11,$E$18:$G$34,2,1) ->  | D11: =IF(AND(B11>29,B12<>0)," Y ","") ->  | E11: DECENAS | F11: =MOD(F8,100) -> 0 | G11: =VLOOKUP(F11,$E$18:$F$34,2,1) ->  | H11: =IF(AND(F11>29,F12<>0)," Y ","") ->  | I11: DECENAS | J11: =MOD(J8,100) -> 0 | K11: =VLOOKUP(J11,$E$18:$F$34,2,1) ->  | L11: =IF(AND(J11>29,J12<>0)," Y ","") ->  | O11: DECENAS | P11: =MOD(P8,100) -> 0 | Q11: =VLOOKUP(P11,$E$18:$G$34,2,1) ->  | R11: =IF(AND(P11>29,P12<>0)," Y ","") ->  | S11: DECENAS | T11: =MOD(T8,100) -> 0 | U11: =VLOOKUP(T11,$E$18:$F$34,2,1) ->  | V11: =IF(AND(T11>29,T12<>0)," Y ","") ->  | W11: DECENAS | X11: =MOD(X8,100) -> 0 | Y11: =VLOOKUP(X11,$E$18:$F$34,2,1) ->  | Z11: =IF(AND(X11>29,X12<>0)," Y ","") -> 
A12: UNIDADES | B12: =MOD(B11,10) -> 0 | C12: =IF((B11<10)+(B11>15),VLOOKUP(B12,$J$18:$L$27,3,0),"") ->  | E12: UNIDADES | F12: =MOD(F11,10) -> 0 | G12: =IF(((F11<10)+(F11>15))*(F8<>1),VLOOKUP(F12,$J$18:$L$27,3,0),"") ->  | I12: UNIDADES | J12: =MOD(J11,10) -> 0 | K12: =IF((J11<10)+(J11>15),VLOOKUP(J12,$J$18:$K$27,2,0),"") ->  | O12: UNIDADES | P12: =MOD(P11,10) -> 0 | Q12: =IF((P11<10)+(P11>15),VLOOKUP(P12,$J$18:$L$27,3,0),"") ->  | S12: UNIDADES | T12: =MOD(T11,10) -> 0 | U12: =IF(((T11<10)+(T11>15))*(T8<>1),VLOOKUP(T12,$J$18:$L$27,3,0),"") ->  | W12: UNIDADES | X12: =MOD(X11,10) -> 0 | Y12: =IF((X11<10)+(X11>15),VLOOKUP(X12,$J$18:$K$27,2,0),"") -> 
A13: CANTIDAD | B13: =VLOOKUP(B8,$N$18:$O$20,2,1) ->  | E13: CANTIDAD | F13: =IF(F8=0,"","MIL") ->  | O13: CANTIDAD | P13: =VLOOKUP(P8,$N$18:$O$20,2,1) ->  | S13: CANTIDAD | T13: =IF(T8=0,"","MIL") -> 
A15: UNION LETRAS | B15: =IF(E4=0,"CERO",C10&" "&C11&D11&C12&" "&B13&" "&G10&" "&G11&H11&G12&" "&F13&" "&K10&" "&K11&L11&K12)&" CON "&E5&"/100 "&E6 -> CERO CON 00/100 | O15: UNION LETRAS | P15: =IF(S4=0,"CERO",Q10&" "&Q11&R11&Q12&" "&P13&" "&U10&" "&U11&V11&U12&" "&T13&" "&Y10&" "&Y11&Z11&Y12)&" CON "&S5&"/100 "&S6 -> CERO CON 00/100
A17: TABLA1 | E17: TABLA 2 | J17: TABLA 3 | N17: TABLA 4
A18: 0 | E18: 0 | J18: 0 | N18: 0
A19: 100 | B19: CIEN | E19: 10 | F19: DIEZ | J19: 1 | K19: UNO | L19: UN | N19: 1 | O19: MILLON
A20: 101 | B20: CIENTO | E20: 11 | F20: ONCE | J20: 2 | K20: DOS | L20: DOS | N20: 2 | O20: MILLONES
A21: 200 | B21: DOSCIENTOS | E21: 12 | F21: DOCE | J21: 3 | K21: TRES | L21: TRES
A22: 300 | B22: TRESCIENTOS | E22: 13 | F22: TRECE | J22: 4 | K22: CUATRO | L22: CUATRO
A23: 400 | B23: CUATROCIENTOS | E23: 14 | F23: CATORCE | J23: 5 | K23: CINCO | L23: CINCO | R23: NUMERO | S23: =Datos!H134 -> 0 | T23: =TRIM(P35) -> CERO CON 00/100
A24: 500 | B24: QUINIENTOS | E24: 15 | F24: QUINCE | J24: 6 | K24: SEIS | L24: SEIS | R24: PARTE ENTERA | S24: =INT(S23) -> 0
A25: 600 | B25: SEISCIENTOS | E25: 16 | F25: DIECI | J25: 7 | K25: SIETE | L25: SIETE | R25: DECIMAL | S25: =IF((S23-S24)=0,"00",ROUND((S23-S24)*100,2)) -> 00
A26: 700 | B26: SETECIENTOS | E26: 20 | F26: VEINTE | J26: 8 | K26: OCHO | L26: OCHO | R26: MONEDA
A27: 800 | B27: OCHOCIENTOS | E27: 21 | F27: VEINTI | J27: 9 | K27: NUEVE | L27: NUEVE
A28: 900 | B28: NOVECIENTOS | E28: 30 | F28: TREINTA | O28: MILLONES | P28: =INT(S23/1000000) -> 0 | S28: MILES | T28: =INT(MOD(S24/1000,1000)) -> 0 | W28: CENTENAS | X28: =MOD(S24,1000) -> 0
E29: 40 | F29: CUARENTA
E30: 50 | F30: CINCUENTA | O30: CENTENAS | P30: =P28 -> 0 | Q30: =VLOOKUP(P30,$A$18:$B$28,2,1) ->  | S30: CENTENAS | T30: =T28 -> 0 | U30: =VLOOKUP(T30,$A$18:$B$28,2,1) ->  | W30: CENTENAS | X30: =X28 -> 0 | Y30: =VLOOKUP(X30,$A$18:$B$28,2,1) -> 
E31: 60 | F31: SESENTA | O31: DECENAS | P31: =MOD(P28,100) -> 0 | Q31: =VLOOKUP(P31,$E$18:$G$34,2,1) ->  | R31: =IF(AND(P31>29,P32<>0)," Y ","") ->  | S31: DECENAS | T31: =MOD(T28,100) -> 0 | U31: =VLOOKUP(T31,$E$18:$F$34,2,1) ->  | V31: =IF(AND(T31>29,T32<>0)," Y ","") ->  | W31: DECENAS | X31: =MOD(X28,100) -> 0 | Y31: =VLOOKUP(X31,$E$18:$F$34,2,1) ->  | Z31: =IF(AND(X31>29,X32<>0)," Y ","") -> 
E32: 70 | F32: SETENTA | O32: UNIDADES | P32: =MOD(P31,10) -> 0 | Q32: =IF((P31<10)+(P31>15),VLOOKUP(P32,$J$18:$L$27,3,0),"") ->  | S32: UNIDADES | T32: =MOD(T31,10) -> 0 | U32: =IF(((T31<10)+(T31>15))*(T28<>1),VLOOKUP(T32,$J$18:$L$27,3,0),"") ->  | W32: UNIDADES | X32: =MOD(X31,10) -> 0 | Y32: =IF((X31<10)+(X31>15),VLOOKUP(X32,$J$18:$K$27,2,0),"") -> 
E33: 80 | F33: OCHENTA | O33: CANTIDAD | P33: =VLOOKUP(P28,$N$18:$O$20,2,1) ->  | S33: CANTIDAD | T33: =IF(T28=0,"","MIL") -> 
E34: 90 | F34: NOVENTA
O35: UNION LETRAS | P35: =IF(S24=0,"CERO",Q30&" "&Q31&R31&Q32&" "&P33&" "&U30&" "&U31&V31&U32&" "&T33&" "&Y30&" "&Y31&Z31&Y32)&" CON "&S25&"/100 "&S26 -> CERO CON 00/100
D41: NUMERO | E41: ='Cert. Constructor'!J34 -> ASDASD | F41: =TRIM(B53) -> 
D42: PARTE ENTERA | E42: =INT(E41) -> 
D43: DECIMAL | E43: =IF((E41-E42)=0,"00",ROUND((E41-E42)*100,2)) -> 
D44: MONEDA
A46: MILLONES | B46: =INT(E41/1000000) ->  | E46: MILES | F46: =INT(MOD(E42/1000,1000)) ->  | I46: CENTENAS | J46: =MOD(E42,1000) -> 
A48: CENTENAS | B48: =B46 ->  | C48: =VLOOKUP(B48,$A$18:$B$28,2,1) ->  | E48: CENTENAS | F48: =F46 ->  | G48: =VLOOKUP(F48,$A$18:$B$28,2,1) ->  | I48: CENTENAS | J48: =J46 ->  | K48: =VLOOKUP(J48,$A$18:$B$28,2,1) -> 
A49: DECENAS | B49: =MOD(B46,100) ->  | C49: =VLOOKUP(B49,$E$18:$G$34,2,1) ->  | D49: =IF(AND(B49>29,B50<>0)," Y ","") ->  | E49: DECENAS | F49: =MOD(F46,100) ->  | G49: =VLOOKUP(F49,$E$18:$F$34,2,1) ->  | H49: =IF(AND(F49>29,F50<>0)," Y ","") ->  | I49: DECENAS | J49: =MOD(J46,100) ->  | K49: =VLOOKUP(J49,$E$18:$F$34,2,1) ->  | L49: =IF(AND(J49>29,J50<>0)," Y ","") -> 
A50: UNIDADES | B50: =MOD(B49,10) ->  | C50: =IF((B49<10)+(B49>15),VLOOKUP(B50,$J$18:$L$27,3,0),"") ->  | E50: UNIDADES | F50: =MOD(F49,10) ->  | G50: =IF(((F49<10)+(F49>15))*(F46<>1),VLOOKUP(F50,$J$18:$L$27,3,0),"") ->  | I50: UNIDADES | J50: =MOD(J49,10) ->  | K50: =IF((J49<10)+(J49>15),VLOOKUP(J50,$J$18:$K$27,2,0),"") -> 
A51: CANTIDAD | B51: =VLOOKUP(B46,$N$18:$O$20,2,1) ->  | E51: CANTIDAD | F51: =IF(F46=0,"","MIL") -> 
A53: UNION LETRAS | B53: =IF(E42=0,"CERO",C48&" "&C49&D49&C50&" "&B51&" "&G48&" "&G49&H49&G50&" "&F51&" "&K48&" "&K49&L49&K50)&" CON "&E43&"/100 "&E44 -> 

Sheet Cálculos (hidden)
A8: En la ciudad de | B8: =Datos!K37 -> 0 | C8: , el día | D8: =Datos!K38 -> 00:00:00 | E8: =Datos!K39 -> 0 | F8: de | G8: =Datos!K40 -> 0 | H8: del año | I8: =Datos!K41 -> 0 | J8: =Datos!K42 -> 0
A9: entre el señor | B9: =Datos!K29 -> 0 | C9: , DNI Nº | D9: =Datos!K30 -> 0 | E9: , con domicilio real en | F9: =Datos!K32 -> 0 | G9: =Datos!K33 -> 0
B10: de la localidad de | C10: =Datos!K34 -> 0 | D10: , Partido de | E10: =Datos!K35 -> 0 | F10: , llamado en adelante el COMITENTE, y | G10: =Datos!K18 -> 0 | H10: , DNI Nº | I10: =Datos!K19 -> 0 | J10: , con domicilio real en
A11: =Datos!K20 -> 0 | B11: =Datos!K21 -> 0 | C11: de la localidad de | D11: =Datos!K22 -> 0 | E11: , Partido de | F11: =Datos!K23 -> 0 | G11: , Con Título Profesional de | H11: =Datos!K24 -> 0 | I11: , Matrícula del Colegio de Técnicos de la Provincia de Buenos Aires Nº | J11: =Datos!K26 -> 0
A12: , llamado en adelante el PROFESIONAL, se conviene en celebrar el siguiente contrato de Locación de Servicios.
A13: Artículo 1º) El COMITENTE encomienda al PROFESIONAL lo siguiente: | B13: =Datos!K55 -> 0 | C13: , para la obra ubicada en | D13: =Datos!K45 -> 0 | E13: Nº | F13: =Datos!K46 -> 0 | G13: , de la localidad de | H13: =Datos!K47 -> 0 | I13: Partido de | J13: =Datos!K48 -> 0 | K13: ; cuya designación catastral es
A14: Circunscripción: | B14: =Datos!K49 -> 0 | C14: Sección: | D14: =Datos!K50 -> 0 | E14: Manzana: | F14: =Datos!K51 -> 0 | G14: Parcela: | H14: =Datos!K52 -> 0 | I14: U.F.: | J14: =Datos!K53 -> 0 | Q14: HOJA UTILIZADA POR EL PROGRAMA PARA
A15: . DESTINO: | B15: =Datos!K44 -> 0
A16: Artículo 2º) Por las tareas detalladas en el artículo anterior el COMITENTE abonará al PROFESIONAL, los honorarios de común acuerdo convenidos, que ascienden a la suma de pesos: $ | B16: =Datos!F130 -> CERO CON 00/100 | C16: =Datos!H129 -> 0 | D16: . Conforme a las normas legales, vigentes en la jurisdicción de la Provincia de Buenos Aires y el Código Civil. | P16: CÁLCULOS INTERNOS SE RECOMIENDA NO INGRESAR
A17: Artículo 3º) El Sr. | B17: =Datos!K29 -> 0 | C17: , en su carácter de COMITENTE, toma a su exclusivo cargo, la ejecución de la obra como EMPRESARIO. | D17: SISTEMA de EJECUCIÓN de OBRA POR: | E17: =Anexa!D12 -> OTRO PROFESIONAL ASUME LA CONSTRUCCION | F17: =Anexa!G12 -> .
A18: Artículo 4º) El COMITENTE abonará al PROFESIONAL los honorarios pactados en la siguiente forma: $ | C18: =Datos!H134 -> 0 | D18: =Datos!F136 -> CERO CON 00/100 | E18: en este acto, en concepto de: | F18: =Datos!H137 -> 0 | G18: y el saldo, de $ | H18: =Datos!H138 -> 0 | I18: en concepto de | J18: =Datos!$H$139 -> 0
A19: Artículo 5º) Se establece el plazo de vigencia del presente contrato en: | B19: =Datos!K57 -> 0 | C19: meses | D19: =Datos!K58 -> 0 | E19: . Vencido el cual, deberán ratificarse las condiciones pactadas. De no hacerse lo expresado, dentro de los quince (15) días posteriores al vencimiento, el PROFESIONAL queda liberado de sus obligaciones, sin necesidad de comunicación alguna al COMITENTE.
A20: Artículo 6º) Con cada percepción de honorarios, el PROFESIONAL, efectuará los aportes previsionales que obliga el Art. 26 inc. b) de la Ley 12490.
A21: Artículo 7º) La falta de pago de cualquiera de las sumas establecidas, producirá la Mora de Pleno Derecho, pudiendo el Profesional optar por cobrar un interés punitorio sobre el atraso, o dar por terminados los plazos establecidos y cobrar el saldo total de lo que se le adeudare, o rescindir el presente contrato quedando los sumas abonadas en concepto de indemnización.
A22: Artículo 8º) En virtud de lo establecido en el artículo 3º del presente, el COMITENTE asume expresamente bajo su costa y responsabilidad, los incisos que a continuación se indican:
A23: a) La contratación de todo el personal, el pago de sus remuneraciones, aportes legales (obra social, previsional, sindical, etc.) indemnizaciones y cualquier otro crédito laboral, como así también, toda responsabilidad laboral, civil y/o penal que pudiera derivar de dicha relación, conforme lo determinan las normativas vigentes;
A24: b) La contratación de los seguros de riesgo por accidente de trabajo, de vida y cualquier otro que exigen las normas que rigen la actividad.
A25: c) El cumplimiento de las normas sobre Seguridad e Higiene en el Trabajo y Medicina Laboral.
A26: d) La compra de la totalidad de materiales que demande la construcción de la obra.
A27: Artículo 9º) Los gastos extraordinarios serán a exclusivo costo y cargo del Comitente, como así también el pago de los Derechos de Construcción o sellados ante el Municipio respectivo, por las obras que se ejecutarán.
A28: Artículo 10º) Para todos los efectos legales emergentes del presente contrato las partes constituyen domicilio legal en los arriba indicados y se someten a la jurisdicción de los Tribunales Ordinarios de | B28: =Datos!K60 -> 0 | C28: renunciando a cualquier otro fuero o jurisdicción.-
A29: Artículo 11º) De conformidad y para que conste, se firman cinco (5) ejemplares del mismo tenor y a un solo efecto con el carácter de: | B29: =Datos!K59 -> 0
A30: Firma del Comitente | B30: Firma del Profesional
A31: =Datos!K29 -> 0 | B31: =Datos!K18 -> 0
A32: CUIL | B32: =Datos!K31 -> 0 | C32: CUIT | D32: =Datos!K25 -> 0

Sheet Inf.Tec-

Sheet INF.TEC-POR M2
C2: COLEGIO DE TECNICOS DE LA PROVINCIA DE BUENOS AIRES
C3: LEY 10.411
D6: Coeficiente Actualización | E6: 1.3
C9: SUPERFICIE | D9: CUBIERTA | E9: =SUM(Datos!D81:G82:'Datos'!D78) -> 0 | F9: =SUM(Datos!L81:O82:'Datos'!L78) -> 0 | G9: =SUM(Datos!R81:V82:'Datos'!R78) -> 0
D10: SEMICUBIERTA | E10: =SUM(Datos!D83:G84) -> 0 | F10: =SUM(Datos!L83:O84) -> 0 | G10: =SUM(Datos!R83:V84) -> 0
C11: Monto de Obra = | F11: =G9+G10 -> 0
C12: INFORME TECNICO - Titulo II - Articulo 5
E13: Inciso A = | G13: 1300
E14: Inciso B = | G14: 7150
E15: Inciso C = Valor en Juego | G15: =G23 -> 0
C16: Parcial | D16: Acumulado | E16: % | F16: Parcial | G16: Acumulado
C17: =100000*E6 -> 130000 | D17: =C17 -> 130000 | E17: 2 | F17: =IF(AND(F11<=D17),(F11)*E17%,IF(F11>D17,(D17*E17%),0)) -> 0 | G17: =F17 -> 0
C18: =400000*E6 -> 520000 | D18: =500000*E6 -> 650000 | E18: 1.5 | F18: =IF(AND(F11<=D18),(F11-D17)*E18%,IF(F11>D18,(C18*E18%),0)) -> -1950 | G18: =IF(F18>0,(F18+G17),0) -> 0
C19: =500000*E6 -> 650000 | D19: =1000000*E6 -> 1300000 | E19: 1 | F19: =IF(AND(F11<=D19),(F11-D18)*E19%,IF(F11>D19,(C19*E19%))) -> -6500 | G19: =IF(F19>0,(F19+G18),0) -> 0
C20: =9000000*E6 -> 11700000 | D20: =10000000*E6 -> 13000000 | E20: 0.8 | F20: =IF(AND(F11<=D20),(F11-D19)*E20%,IF(F11>D20,(C20*E20%))) -> -10400 | G20: =IF(F20>0,(F20+G19),0) -> 0
C21: =(100000000-30000000)*H1 -> 0 | D21: =100000000*H1 -> 0 | E21: 0.5 | F21: =IF(AND(F11<=D21),(F11-D20)*E21%,IF(F11>D21,(C21*E21%),0)) -> -65000 | G21: =IF(F21>0,(F21+G20),0) -> 0
C22: Excedente | D22: =F11-D21 -> 0 | E22: 0 | F22: =IF(F11>D21,D22*E22%,0) -> 0
F23: Honorario = | G23: =MAX(G17:G22)+F22 -> 0
C24: Honorario Minimo por Informe Tecnico = | G24: =G13+G14+G15 -> 8450

Sheet R-115U
M3: R-115U
C10: Datos del Contribuyente
C12: Apellido / Razon Social
C14: CUIT / CUIL / CDI | E14: =Datos!K31 -> 0
C16: Domicilio Fiscal
D17: Calle | E17: =Datos!K32 -> 0
D18: Número | E18: =Datos!K33 -> 0 | H18: Ruta | J18: Km
D19: Torre | F19: Piso | G19: - | H19: Dpto | I19: - | J19: Manzana
G20: Provincia | I20: BUENOS AIRES
D21: C.Postal | E21: 8000 | H21: Partido | I21: =Datos!K35 -> 0
D22: Localidad | E22: =Datos!K34 -> 0
D23: Telefono | F23: - | J23: Fax | L23: -
D24: E-mail
D25: Observaciones
C28: Ubicación de la Producción, Bien o Servicio
D29: Calle | E29: =Datos!K45 -> 0
D30: Número | E30: =Datos!K46 -> 0 | H30: Ruta | J30: Km
F31: Piso | G31: - | H31: Dpto | I31: - | J31: Manzana
G32: Provincia | I32: BUENOS AIRES
D33: C.Postal | E33: 8000 | H33: Partido | I33: =Datos!K48 -> 0
D34: Localidad | E34: =Datos!K47 -> 0
D35: Telefono | F35: - | J35: Fax | L35: -
D36: E-mail
D37: Observaciones
B41: El que suscribe | D41: =Datos!K29 -> 0 | L41: , con
B42: CUIT/CUIL: | D42: =Datos!K31 -> 0 | F42: en su carácter de PROPIETARIO , declara que los
B43: datos consignados en este formulario son correctos y completos , y que esta declara-
B44: ción se ha confeccionado sin omitir ni falsear dato alguno que daba contener , siendo
B45: fiel expresión de la verdad.
E48: El presente formulario se emite en 2 ejemplares - Normativa: DN B 05-07
